{"text_format":"1","workbook":"xlsx","n_sheets":8,"sheets":["CLASSIFICAÇÃO GERAL 2025","jun2025","jul2025","ago2025","set2025","out2025","nov2025","dez2025"],"not_rendered":{"charts":0,"images":2,"macros":1,"external_links":0,"defined_names":1,"comments":0,"pivot_tables":0},"unopened":[],"bounds":{"document_bytes":16777216,"sheet_cells":100000,"rows_first":2000,"rows_last":500,"rows_between":2000,"halvings":0,"cell_chars":16384,"cell_head_chars":4096},"cells_cut":0,"cells_raw":0,"read":"whole","date_system":"1900"}

{"sheet":"CLASSIFICAÇÃO GERAL 2025","index":0,"n_rows":124,"n_cols":5,"rows_kept":124,"cut":false,"hidden":false,"merged":[[0,0,0,4],[1,0,1,4]]}
["CLASSIFICAÇÃO GERAL ACPA – TEMPORADA 2025 DOMINGO"]
["COLEIRO FIBRA","Pássaro","Proprietário","Origem","Pontos"]
["POSIÇÃO","NOME DO PÁSSARO","NOME DO PROPRIETÁRIO","ORIGEM (CIDADE)","PONTUAÇÃO"]
["1º","FANTASMA","CLOVIS/RODRIGO","TRÊS RIOS",{"$f":"28+26+26+28+14+26+30+26+13+19","v":236}]
["2º","CAVIAR","BRUNO","TRÊS RIOS",{"$f":"24+19+23+22+23+18+16+23+18+18","v":204}]
["3º","FAKE NEWS","MOACIR/MARCOS","GUARARÁ",{"$f":"28+28+30+21+21+22+20","v":170}]
["4º","TIK TOK","RAFAEL SOUZA","BARBACENA",{"$f":"24+26+30+30+30+30","v":170}]
["5º","FURIOSO","LI","BARBACENA",{"$f":"24+21+16+30+15+15+19+13","v":153}]
["6º","MUTLEY","MARCÃO","JUIZ DE FORA",{"$f":"30+30+22+30+19+14","v":145}]
["7º","MALUCO","ANDRÉ LUÍS","PARAÍBA DO SUL",{"$f":"22+24+26+17+26+28","v":143}]
["8º","REMY","RAFAEL","BARBACENA",{"$f":"24+19+23+26+22","v":114}]
["9º","EL CHAPO","RAFAEL","BARBACENA",{"$f":"14+23+26+26+24","v":113}]
["10º","PALETO","LI","BARBACENA",{"$f":"23+21+28+30","v":102}]
["11º","PADRINHO","LI","BARBACENA",{"$f":"26+24+23+24","v":97}]
["12º","FAVELA","JHONATAN CABRITO","MATIAS BARBOSA",{"$f":"17+15+24+20+20","v":96}]
["13º","FORASTEIRO","WL F. MINGAL/GABRIEL","PARAÍBA DO SUL",{"$f":"30+21+28+16","v":95}]
["14º","REI DO FURDUNÇO","WILLIAN","TRÊS RIOS",{"$f":"15+22+16+18+19","v":90}]
["15º","AMOSTRADINHO","PAULINHO/ARTHUR","TRÊS RIOS",{"$f":"16+28+21+15","v":80}]
["16º","LAMBADA","DANIEL","ITABERABA/BAHIA",{"$f":"24+28+28","v":80}]
["17º","MENINO DO MORRO","VLADEMIR/GABRIEL","PARAÍBA DO SUL",{"$f":"26+22+18+13","v":79}]
["18º","PRESTO","SÍLVIO","SANTOS DUMONT",{"$f":"22+26+17+14","v":79}]
["19º","MAGO","SILVIO","SANTOS DUMONT",{"$f":"28+20+28","v":76}]
["20º","FARAÓ","ANDRÉ LUÍS","PARAÍBA DO SUL",{"$f":"30+19+23","v":72}]
["21º","IMPÉRIO","LUIZINHO","PETRÓPOLIS",{"$f":"20+16+13+23","v":72}]
["22º","DUBAI","WILLIAM","TRÊS RIOS",{"$f":"28+19+21","v":68}]
["23º","TRÓIA","BRUNO","TRÊS RIOS",{"$f":"28+22+16","v":66}]
["24º","CAPOEIRA","BAIANO","VASSOURAS",{"$f":"23+18+24","v":65}]
["25º","FARRAPO DOIDO","JOÃO MARCOS","AREAL",{"$f":"13+15+17+19","v":64}]
["26º","LOCOMOTIVA","CLOVIS/RODRIGO","TRÊS RIOS",{"$f":"23+14+24","v":61}]
["27º","DO BRONX","PABLO","ITAIPAVA",{"$f":"23+20+15","v":58}]
["28º","PANTERA NEGRA","PABLO","ITAIPAVA",{"$f":"22+22+14","v":58}]
["29º","CHUCALHO DE COBRA","LUCIMAR/LUIZ HENRIQUE","TRÊS RIOS",{"$f":"19+15+21","v":55}]
["30º","RELÂMPAGO","LI","BARBACENA",{"$f":"30+24","v":54}]
["31º","PEGA FIRME","ÍTALO SANTOS","PARAÍBA DO SUL",{"$f":"15+14+21","v":50}]
["32º","SAFADÃO","DANIEL/LUCAS","JUIZ DE FORA",{"$f":"30+20","v":50}]
["33º","FERRARI","CT ALPHA","PARAÍBA DO SUL",{"$f":"19+13+16","v":48}]
["34º","JAGUAR","JUNINHO/RUAN","T. RIOS/MAR DE ESPANHA",{"$f":"16+13+19","v":48}]
["35º","V10","JUNINHO PACHECO","TRÊS RIOS",{"$f":"22+23","v":45}]
["36º","JHON NETO","MATHEUS/JEFERSON","PARAÍBA DO SUL",{"$f":"19+24","v":43}]
["37º","SHEIK","JONAS","TRÊS RIOS",{"$f":"17+26","v":43}]
["38º","BINHA PRETO","EULER","TRÊS RIOS",{"$f":"18+23","v":41}]
["39º","XODÓ","GUSTAVO/GILSON","TRÊS RIOS/S. DUMONT",{"$f":"23+18","v":41}]
["40º","GAGUINHO","FABINHO","TRÊS RIOS",{"$f":"19+21","v":40}]
["41º","OVERDOSE","BRUNO R.","VASSOURAS",{"$f":"20+20","v":40}]
["42º","PIT BULL","DIEGO NEVES","JUIZ DE FORA",{"$f":"20+20","v":40}]
["43º","PODEROSO CHEFINHO","RODRIGO/BRUNO","PETRÓPOLIS",{"$f":"16+24","v":40}]
["44º","MAGO","RAMON DINIZ/YGOR TARDELLI","ANTA",{"$f":"22+17","v":39}]
["45º","DELÍRIO","RAUANI VALLE","TRÊS RIOS",{"$f":"19+17","v":36}]
["46º","GAROTO","BRUNO","TRÊS RIOS",{"$f":"20+16","v":36}]
["47º","MALUQUINHO","GIBA","TRÊS RIOS",{"$f":"21+15","v":36}]
["48º","CHUPA CABRA","REINALDO","BARBACENA",{"$f":"17+18","v":35}]
["49º","POLÊMICO","RICARDINHO/GABRIEL","PARAÍBA DO SUL",{"$f":"18+17","v":35}]
["50º","BIGODINHO","PIA","SANTOS DUMONT",{"$f":"18+16","v":34}]
["51º","500 MILHAS","FLÁVIO","PATY DO ALFERES",30]
["52º","COISA LINDA","JUNINHO","TRÊS RIOS",30]
["53º","COMENDADOR","LUCAS","MATIAS BARBOSA",{"$f":"17+13","v":30}]
["54º","MELIODAS","JONAS","TRÊS RIOS",{"$f":"17+13","v":30}]
["55º","GABIGOL","RAPHAEL/ROGÉRIO","MATIAS BARBOSA",28]
["56º","PETER PAN","RAFAEL","PARAÍBA DO SUL",28]
["57º","PIT BULL","JOÃO MARCOS","AREAL",{"$f":"14+14","v":28}]
["58º","RAPIDEZ","REINALDO","JUIZ DE FORA",28]
["59º","VINGADOR","SÍLVIO","SANTOS DUMONT",{"$f":"15+13","v":28}]
["60º","I FOOD","YURI","MATIAS BARBOSA",26]
["61º","PÉROLA NEGRA","ROMÁRIO OLIVEIRA","PETRÓPOLIS",26]
["62º","TREM","RAFAEL","PARAÍBA DO SUL",26]
["63º","BAIANO","REINALDO","JUIZ DE FORA",24]
["64º","SUPREMO","LEONARDO","SANTOS DUMONT",24]
["65º","CASCAVEL","BRUNO/RODRIGO","PETRÓPOLIS",23]
["66º","FAKE NEWS","PEDRO/GUSTAVO","JUIZ DE FORA",23]
["67º","ASTEROIDE","JOHNATAN","UBÁ",22]
["68º","MEGAMENTE","FLÁVIO","PATY DO ALFERES",22]
["69º","REVELAÇÃO","LUCAS","TRÊS RIOS",22]
["70º","VENENO","LISSANDRO","VASSOURAS",22]
["71º","BRUXO","WERCOLES","ALÉM PARAÍBA",21]
["72º","CASSINO","JUNINHO","TRÊS RIOS",21]
["73º","CORINGA","ERICK/JOVEM","MATIAS BARBOSA",21]
["74º","EXPRESSO","RAUANI VALLE","TRÊS RIOS",21]
["75º","GEMADA","LI","BARBACENA",21]
["76º","VENON JÚNIOR","MURILO","TRÊS RIOS",21]
["77º","ALMIRANTE","JONAS SAMPAIO","PARAÍBA DO SUL",20]
["78º","ESPOLETA","RAFAEL SOUZA","NITERÓI",20]
["79º","GAROTO","JONAS","TRÊS RIOS",20]
["80º","MAGNÍFICO","CH FAMÍLIA MINGAL","PARAÍBA DO SUL",20]
["81º","XANDÃO","LI","BARBACENA",20]
["82º","EL DOIDO","ROMÁRIO","PETRÓPOLIS",19]
["83º","JOIA RARA","JUNINHO","TRÊS RIOS",19]
["84º","CEIFADOR","BRUNO/RODRIGO","PETRÓPOLIS",18]
["85º","PATRÃO","WL FAMÍLIA MINGAL","PARAÍBA DO SUL",18]
["86º","PIVETE","GUSTAVO/GILSON","TRÊS RIOS/S. DUMONT",18]
["87º","REI DA RUA","ANDRÉ AGUIAR","PARAÍBA DO SUL",18]
["88º","TORMENTO","ANTÔNIO","MATIAS BARBOSA",18]
["89º","VENENO","RUANNYTO","SANTOS DUMONT",18]
["90º","BAIANO","CT LIMA","PARAÍBA DO SUL",17]
["91º","CAMISA 10","JULIANO PEREIRA","VALENÇA",17]
["92º","HERÓI DE GUERRA","BRUNO/RODRIGO","PETRÓPOLIS",17]
["93º","JIRAIA","GABRIEL/TIAGO","PARAÍBA DO SUL",17]
["94º","MACALÉ","GUSTAVO/GILSON","TRÊS RIOS/S. DUMONT",17]
["95º","SAGACIDADE","FLÁVIO JR","JUIZ DE FORA",17]
["96º","BMW","CT ALPHA","PARAÍBA DO SUL",16]
["97º","CYBORG","HENRIQUE","ANTA",16]
["98º","DOGUINHA","LUCAS","TRÊS RIOS",16]
["99º","FERRARI","BAIANO","VASSOURAS",16]
["100º","RAIO","ZECA/LUIS","CHIADOR",16]
["101º","BESTEIRINHA","EULER","TRÊS RIOS",15]
["102º","CORONEL","DANIEL/LUCAS","JUIZ DE FORA",15]
["103º","MAESTRO","CH F. MINGAL","PARAÍBA DO SUL",15]
["104º","PELÉ","WILLIAM","TRÊS RIOS",15]
["105º","REALEZA","VINÍCIUS","AREAL",15]
["106º","THOR","JANDERSON","TRÊS RIOS",15]
["107º","BELGA","RODRIGO/BRUNO","PETRÓPOLIS",14]
["108º","CHARADA","HENRIQUE","PARAÍBA DO SUL",14]
["109º","CLONE","GIBA","TRÊS RIOS",14]
["110º","FAIXA PRETA","VITOR MÁRCIO","TRÊS RIOS",14]
["111º","IMPERADOR","GUSTAVO/GILSON","TRÊS RIOS/S. DUMONT",14]
["112º","POLÊMICO","DHACO","PARAÍBA DO SUL",14]
["113º","SELVAGEM","HENRIQUE","TRÊS RIOS",14]
["114º","TRUQUE","REGINALDO","PETRÓPOLIS",14]
["115º","BISON","NATHAN","LEVY GASPARIAN",13]
["116º","BLINDADO","SAMUEL","SANTOS DUMONT",13]
["117º","GRILO","RODRIGO/BRUNO","PETRÓPOLIS",13]
["118º","INVASÃO","WATILA","JUIZ DE FORA",13]
["119º","REI DAVI","IGOR","PARAÍBA DO SUL",13]
["120º","TOMA JACK","IGOR","PARAÍBA DO SUL",13]
["121º","VEDITA","HARRISON","SANTOS DUMONT",13]

{"sheet":"jun2025","index":1,"n_rows":17,"n_cols":6,"rows_kept":17,"cut":false,"hidden":false,"merged":[[0,0,0,5]]}
["29/06/2025 (DOMINGO)"]
["POS.","PÁSSARO","PROPRIETÁRIO","ORIGEM","CANTOS","PONTOS"]
["1º","REI","RATINHO","VALENÇA",140,30]
["2º","SINISTRO","NELSINHO","MAR DE ESPANHA",136,28]
["3º","BISTURO","GABRIEL/DJ RODRIGO","PARAÍBA DO SUL",135,26]
["4º","MANDA CHUVA","RODRIGO","PATY DO ALFERES",130,24]
["5º","VENENO","GABRIEL/LEANDRO","PARAÍBA DO SUL",130,23]
["6º","WOLVERINE","KAIAN","PATY DO ALFERES",114,22]
["7º","ZELDA","RODRIGO/BRUNO","PETRÓPOLIS",105,21]
["8º","CAMPEÃO","FÁBIO","TRÊS RIOS",46,20]
["9º"]
["10º"]
["11º"]
["12º"]
["13º"]
["14º"]
["15º"]

{"sheet":"jul2025","index":2,"n_rows":32,"n_cols":27,"rows_kept":32,"cut":false,"hidden":false,"merged":[[0,0,0,5],[0,7,0,12],[0,14,0,19],[0,21,0,26]]}
["06/07/2025 (DOMINGO)",null,null,null,null,null,null,"13/07/2025 (DOMINGO)",null,null,null,null,null,null,"20/07/2025 (DOMINGO)",null,null,null,null,null,null,"27/07/2025 (DOMINGO)"]
["POS.","PÁSSARO","PROPRIETÁRIO","ORIGEM","CANTOS","PONTOS",null,"POS.","PÁSSARO","PROPRIETÁRIO","ORIGEM","CANTOS","PONTOS",null,"POS.","PÁSSARO","PROPRIETÁRIO","ORIGEM","CANTOS","PONTOS",null,"POS.","PÁSSARO","PROPRIETÁRIO","ORIGEM","CANTOS","PONTOS"]
["1º","GPS","VALÉRIO","PETRÓPOLIS",142,30,null,"1º","MANDA CHUVA","RODRIGO","PATY DO ALFERES",151,30,null,"1º","PEPE","EULER","TRÊS RIOS",235,30,null,"1º","JJ","PLISCILEY","LAVRAS",242,30]
["2º","GLADIADOR","BRUNO/RODRIGO","PETRÓPOLIS",115,28,null,"2º","GPS","VALÉRIO","PETRÓPOLIS",147,28,null,"2º","DILÚVIO","REINALDO","BARBACENA",155,28,null,"2º","FURIOSO","LI","BARBACENA",218,28]
["3º","MALVADÃO","BRUNO/RODRIGO","PETRÓPOLIS",113,26,null,"3º","SANTA FE","GUSTAVO/GILSON","TRÊS RIOS",110,26,null,"3º","JHON NETO","MATHEUS/JEFERSON","PARAÍBA DO SUL",151,26,null,"3º","PEPE","EULER","TRÊS RIOS",165,26]
["4º","REI","RATINHO","VALENÇA",87,24,null,"4º","LIGEIRINHO","EMERSON","PARAÍBA DO SUL",89,24,null,"4º","LIGEIRINHO","EMERSON","PARAÍBA DO SUL",117,24,null,"4º","BISTURI","GABRIEL/DJ RODRIGO","PARAÍBA DO SUL",150,24]
["5º","PAC MAN","GILSON/GUSTAVO","SANTOS DUMONT",74,23,null,"5º","MAGNÍFICO","CH FAMÍLIA MINGAL","PARAÍBA DO SUL",80,23,null,"5º","MÁGICO","FÁBIO","TRÊS RIOS",110,23,null,"5º","HINIKEN","PLISCILEY","LAVRAS",146,23]
["6º","MAGNÍFICO","CH FAMÍLIA MINGAL","PARAÍBA DO SUL",60,22,null,"6º","CAMPEÃO","FÁBIO","TRÊS RIOS",74,22,null,"6º","JAMELÃO","CH/FAMÍLIA MINGAL","PARAÍBA DO SUL",100,22,null,"6º","FAKE NEWS","PLISCILEY","LAVRAS",142,22]
["7º","CAMPEÃO","FÁBIO","TRÊS RIOS",58,21,null,"7º","AMOSTRADINHO","PAULINHO","TRÊS RIOS",74,21,null,"7º","REI","GUSTAVO/GILSON","TRÊS RIOS",98,21,null,"7º","MALUQUINHO","GIBA","TRÊS RIOS",141,21]
["8º","BRAHMA","TIAGUINHO","JUIZ DE FORA",53,20,null,"8º","MATUE","LOIRINHO","PARAÍBA DO SUL",70,20,null,"8º","BISTURI","GABRIEL/DJ RODRIGO","PARAÍBA DO SUL",93,20,null,"8º","TAURUS","DOUGLAS","JUIZ DE FORA",140,20]
["9º",null,null,null,null,null,null,"9º","JOIA RARA","JUNINHO","TRÊS RIOS",69,19,null,"9º","MAGNÍFICO","CH/FAMÍLIA MINGAL","PARAÍBA DO SUL",93,19,null,"9º","JAMELÃO","CH FAMÍLIA MINGAL","PARAÍBA DO SUL",140,19]
["10º",null,null,null,null,null,null,"10º","LACOSTE","GILSON/GUSTAVO","SANTOS DUMONT",41,18,null,"10º","PATRÃO","FAMÍLIA MINGAL","PARAÍBA DO SUL",90,18,null,"10º","DILÚVIO","REINALDO","BARBACENA",131,18]
["11º",null,null,null,null,null,null,"11º",null,null,null,null,null,null,"11º","TAURUS","DOUGLAS","JUIZ DE FORA",88,17,null,"11º","PEDRINHO","LI","BARBACENA",131,17]
["12º",null,null,null,null,null,null,"12º",null,null,null,null,null,null,"12º","MALUQUINHO","GIBA","TRÊS RIOS",86,16,null,"12º","ZUMBI","FAMÍLIA HONORATO","PARAÍBA DO SUL",130,16]
["13º",null,null,null,null,null,null,"13º",null,null,null,null,null,null,"13º","BOCA RICA","WILLIAN","TRÊS RIOS",68,15,null,"13º","JOIA RARA","JUNINHO","TRÊS RIOS",130,15]
["14º",null,null,null,null,null,null,"14º",null,null,null,null,null,null,"14º","ZUMBI","FAMÍLIA HONORATO","PARAÍBA DO SUL",61,14,null,"14º","RAIO","LUIS/ZECA","CHIADOR",125,14]
["15º",null,null,null,null,null,null,"15º",null,null,null,null,null,null,"15º","ZÉ INACIO","EULER","TRÊS RIOS",45,13,null,"15º","OUSADIA","EDIMAR LEITEIRO","PETRÓPOLIS",122,13]
["16º",null,null,null,null,null,null,"16º",null,null,null,null,null,null,"16º","GLADIADOR","BRUNO/RODRIGO","PETRÓPOLIS",43,null,null,"16º","CHUCALHO DE COBRA","LUCIMAR","TRÊS RIOS",122]
["17º",null,null,null,null,null,null,"17º",null,null,null,null,null,null,"17º",null,null,null,null,null,null,"17º","GPS","VALÉRIO","PETRÓPOLIS",119]
["18º",null,null,null,null,null,null,"18º",null,null,null,null,null,null,"18º",null,null,null,null,null,null,"18º","BOLT","RODRIGO/BRUNO","PETRÓPOLIS",116]
["19º",null,null,null,null,null,null,"19º",null,null,null,null,null,null,"19º",null,null,null,null,null,null,"19º","AMOSTRADINHO","PAULINHO","TRÊS RIOS",109]
["20º",null,null,null,null,null,null,"20º",null,null,null,null,null,null,"20º",null,null,null,null,null,null,"20º","IMAGINÁRIO","FÁBIO","PETRÓPOLIS",107]
["21º",null,null,null,null,null,null,"21º",null,null,null,null,null,null,"21º",null,null,null,null,null,null,"21º","CALIBRE 12","HENRIQUE","ANTA",104]
["22º",null,null,null,null,null,null,"22º",null,null,null,null,null,null,"22º",null,null,null,null,null,null,"22º","JHON NETO","MATHEUS/JEFERSON","PARAÍBA DO SUL",102]
["23º",null,null,null,null,null,null,"23º",null,null,null,null,null,null,"23º",null,null,null,null,null,null,"23º","MÁGICO","FÁBIO","TRÊS RIOS",101]
["24º",null,null,null,null,null,null,"24º",null,null,null,null,null,null,"24º",null,null,null,null,null,null,"24º","EL TORO","IGOR","PARAÍBA DO SUL",81]
["25º",null,null,null,null,null,null,"25º",null,null,null,null,null,null,"25º",null,null,null,null,null,null,"25º","MAGNÍFICO","CH FAMÍLIA MINGAL","PARAÍBA DO SUL",80]
["26º",null,null,null,null,null,null,"26º",null,null,null,null,null,null,"26º",null,null,null,null,null,null,"26º","CLONE","GIBA","TRÊS RIOS",76]
["27º",null,null,null,null,null,null,"27º",null,null,null,null,null,null,"27º",null,null,null,null,null,null,"27º","VENENO","GABRIEL/LEANDRO","PARAÍBA DO SUL",65]
["28º",null,null,null,null,null,null,"28º",null,null,null,null,null,null,"28º",null,null,null,null,null,null,"28º","REI","CLAUDINHO","TRÊS RIOS",34]
["29º",null,null,null,null,null,null,"29º",null,null,null,null,null,null,"29º",null,null,null,null,null,null,"29º"]
["30º",null,null,null,null,null,null,"30º",null,null,null,null,null,null,"30º",null,null,null,null,null,null,"30º"]

{"sheet":"ago2025","index":3,"n_rows":42,"n_cols":34,"rows_kept":42,"cut":false,"hidden":false,"merged":[[0,0,0,5],[0,7,0,12],[0,14,0,19],[0,21,0,26],[0,28,0,33]]}
["03/08/2025 (DOMINGO)",null,null,null,null,null,null,"10/08/2025 (DOMINGO)",null,null,null,null,null,null,"17/08/2025 (DOMINGO)",null,null,null,null,null,null,"24/08/2025 (DOMINGO)",null,null,null,null,null,null,"31/08/2025 (DOMINGO)"]
["POS.","PÁSSARO","PROPRIETÁRIO","ORIGEM","CANTOS","PONTOS",null,"POS.","PÁSSARO","PROPRIETÁRIO","ORIGEM","CANTOS","PONTOS",null,"POS.","PÁSSARO","PROPRIETÁRIO","ORIGEM","CANTOS","PONTOS",null,"POS.","PÁSSARO","PROPRIETÁRIO","ORIGEM","CANTOS","PONTOS",null,"POS.","PÁSSARO","PROPRIETÁRIO","ORIGEM","CANTOS","PONTOS"]
["1º","PADRINHO","LI","BARBACENA",194,30,null,"1º","AMOSTRADINHO","PAULINHO","TRÊS RIOS",206,30,null,"1º","PADRINHO","LI","BARBACENA",195,30,null,"1º","LOCOMOTIVA","CLOVIS","TRÊS RIOS",227,30,null,"1º","COISA LINDA","JUNINHO/MARCÃO","TRÊS RIOS",241,30]
["2º","MALUQUINHO","GIBA","TRÊS RIOS",153,28,null,"2º","PADRINHO","LI","BARBACENA",200,28,null,"2º","ASTRO","MARCELO","SANTOS DUMONT",187,28,null,"2º","PADRINHO","LI","BARBACENA",205,28,null,"2º","COMENDADOR","LUCAS","MATIAS BARBOSA",195,28]
["3º","PEPE","EULER","TRÊS RIOS",151,26,null,"3º","MALUQUINHO","GIBA","TRÊS RIOS",200,26,null,"3º","MAGNÍFICO","CH FAMÍLIA MINGAL","PARAÍBA DO SUL",176,26,null,"3º","FAKE NEWS","PEDRO/GUSTAVO","JUIZ DE FORA",197,26,null,"3º","CHUCALHO DE COBRA","LUCIMAR/LUIZ HENRIQUE","TRÊS RIOS",178,26]
["4º","CHUCALHO DE COBRA","LUCIMAR/LUIZ HENRIQUE","TRÊS RIOS",148,24,null,"4º","CHUCALHO DE COBRA","LUCIMAR/LUIZ HENRIQUE","TRÊS RIOS",184,24,null,"4º","PEPE","EULER","TRÊS RIOS",174,24,null,"4º","CHUCALHO DE COBRA","LUCIMAR/LUIZ HENRIQUE","TRÊS RIOS",161,24,null,"4º","FANTASMA","CLOVIS/RODRIGO","TRÊS RIOS",175,24]
["5º","REI DO FURDUNÇO","WILLIAN","TRÊS RIOS",130,23,null,"5º","FURIOSO","LI","BARBACENA",168,23,null,"5º","FURIOSO","LI","BARBACENA",162,23,null,"5º","PEPE","EULER","TRÊS RIOS",154,23,null,"5º","LOCOMOTIVA","CLOVIS/RODRIGO","TRÊS RIOS",172,23]
["6º","LACOSTE","GUSTAVO/GILSON","T. RIOS/S.DUMONT",129,22,null,"6º","GEMADA","LI","BARBACENA",160,22,null,"6º","REI DO FURDUNCO","WILLIAN","TRÊS RIOS",159,22,null,"6º","BOTA CARA","GABRIEL/DJ RODRIGO","PARAÍBA DO SUL",152,22,null,"6º","HERÓI DE GUERRA","BRUNO/RODRIGO","PETRÓPOLIS",167,22]
["7º","PEDRA","GABRIEL","PETRÓPOLIS",111,21,null,"7º","PEPE","EULER","TRÊS RIOS",160,21,null,"7º","MARRETA","ROMÁRIO","PETRÓPOLIS",157,21,null,"7º","TROVÃO","LUCIMAR/LUIZ HENRIQUE","TRÊS RIOS",147,21,null,"7º","RAIO","LUIS/ZECA","CHIADOR",165,21]
["8º","CORINGA","VALÉRIO","PETRÓPOLIS",110,20,null,"8º","FARÃO","ANDRÉ/ERICK","MATIAS BARBOSA/P. DO SUL",157,20,null,"8º","PINTA NEGRA","RATINHO","VALENÇA",150,20,null,"8º","ERUPÇÃO","RAUANI VALLE","PETRÓPOLIS",145,20,null,"8º","BIGODINHO","PIA","SANTOS DUMONT",154,20]
["9º","TESOURINHA","SERGINHO","JUIZ DE FORA",109,19,null,"9º","FARRAPO DOIDO","RODRIGO/BRUNO","PETRÓPOLIS",155,19,null,"9º","FARRAPO DOIDO","RODRIGO/BRUNO","PETRÓPOLIS",150,19,null,"9º","COISA LINDA","JUNINHO/MARCÃO","TRÊS RIOS",140,19,null,"9º","MAGNÍFICO","CH FAMÍLIA MINGAL","PARAÍBA DO SUL",153,19]
["10º","JOIA RARA","JUNINHO","TRÊS RIOS",109,18,null,"10º","ABUTRE","JOÃO MARCOS","AREAL",145,18,null,"10º","PROFETA","LUCAS","MATIAS BARBOSA",148,18,null,"10º","CLONE","GIBA","TRÊS RIOS",134,18,null,"10º","TENEBROSO","JONAS RICARDO","TRÊS RIOS",151,18]
["11º","TAURUS","DOUGLAS","JUIZ DE FORA",104,17,null,"11º","ASTRO","MARCELO","SANTOS DUMONT",143,17,null,"11º","MAXIMUS","BRUNO","?",136,17,null,"11º","REI DO FURDUNCO","WILLIAN","TRÊS RIOS",132,17,null,"11º","PEPE","EULER","TRÊS RIOS",150,17]
["12º","FARRAPO DOIDO","RODRIGO/BRUNO","PETRÓPOLIS",99,16,null,"12º","KAISER","RODRIGO/BRUNO","PETRÓPOLIS",142,16,null,"12º","CORINGA","VALÉRIO","PETRÓPOLIS",134,16,null,"12º","MALUQUINHO","GIBA","TRÊS RIOS",132,16,null,"12º","JOIA RARA","JUNINHO","TRÊS RIOS",148,16]
["13º","JHON NETO","JEFFERSON","PARAÍBA DO SUL",99,15,null,"13º","JHON NETO","JEFFERSON/MATHEUS","PARAÍBA DO SUL",142,15,null,"13º","EL TORO","IGOR","PARAÍBA DO SUL",126,15,null,"13º","DILÚVIO","REINALDO","BARBACENA",128,15,null,"13º","PATO DONALD","REGINALDO","PETRÓPOLIS",147,15]
["14º","ESTOPIM","?","PETRÓPOLIS",97,14,null,"14º","REI DO FURDUNÇO","WILLIAN","TRÊS RIOS",142,14,null,"14º","MALVADÃO","BRUNO/RODRIGO","PETRÓPOLIS",123,14,null,"14º","JHON NETO","JEFFERSON/MATHEUS","PARAÍBA DO SUL",127,14,null,"14º","ABUSADO","ELVIS","JUIZ DE FORA",146,14]
["15º","JAMELÃO","CH FAMÍLIA MINGAL","PARAÍBA DO SUL",93,13,null,"15º","MALVADÃO","BRUNO/RODRIGO","PETRÓPOLIS",140,13,null,"15º","GEMADA","LI","BARBACENA",118,13,null,"15º","MAGNÍFICO","CH FAMÍLIA MINGAL","PARAÍBA DO SUL",126,13,null,"15º","BICO BRANCO","LOIRIN","PARAÍBA DO SUL",145,13]
["16º","RABO DE PEIXE","LUCIMAR/LUIZ HENRIQUE","TRÊS RIOS",93,null,null,"16º","CORINGA","VALÉRIO","PETRÓPOLIS",123,null,null,"16º","MAGO","KLEBER/BRUNO","RIO DE JANEIRO",115,null,null,"16º","ILUMINADO","CÉLIO PREVITALLI","PETRÓPOLIS",120,null,null,"16º","REI DO FURDUNCO","WILLIAN","TRÊS RIOS",145]
["17º","DILÚVIO","REINALDO","BARBACENA",91,null,null,"17º","500 MILHAS","FLÁVIO","MIGUEL PEREIRA",121,null,null,"17º","COISA LINDA","JUNINHO/MARCÃO","TRÊS RIOS",114,null,null,"17º","BERLIM","EDER","TRÊS RIOS",115,null,null,"17º","TZAR","LUIS/ZECA","CHIADOR",140]
["18º","TROVÃO","LUCIMAR/LUIZ HENRIQUE","TRÊS RIOS",89,null,null,"18º","RENASCER","RÔMULO","SANTOS DUMONT",120,null,null,"18º","LOCOMOTIVA","CLOVIS","TRÊS RIOS",113,null,null,"18º","PATO DONALD","REGINALDO","PETRÓPOLIS",114,null,null,"18º","ATHOS","DANIEL","SANTOS DUMONT",139]
["19º","TALISMÃ","HENRIQUE","ANTA",79,null,null,"19º","JOIA RARA","JUNINHO","TRÊS RIOS",120,null,null,"19º","JHON NETO","JEFFERSON/MATHEUS","PARAÍBA DO SUL",111,null,null,"19º","FANTASMA","CLOVIS","TRÊS RIOS",114,null,null,"19º","FAIXA PRETA","GABRIEL PAIVA/WILIAN","PARAÍBA DO SUL",132]
["20º","OUSADIA","EDIMAR LEITEIRO","PETRÓPOLIS",73,null,null,"20º","ZÉ INACIO","EULER","TRÊS RIOS",120,null,null,"20º","PEDRA","GABRIEL","PETRÓPOLIS",101,null,null,"20º","PROFETA","LUCAS","MATIAS BARBOSA",111,null,null,"20º","BAILARINO","MATHEUS/FELIPE","MATIAS BARBOSA",129]
["21º","EL TORO","IGOR","PARAÍBA DO SUL",72,null,null,"21º","PEDRA","GABRIEL","PETRÓPOLIS",118,null,null,"21º","AK TROVÃO","ALEX LAMA","PARAÍBA DO SUL",100,null,null,"21º","PATRIOTA","PIA","SANTOS DUMONT",107,null,null,"21º","MALVADÃO","BRUNO BRANCO","PETRÓPOLIS",117]
["22º","BRAHMA","TIAGUINHO","JUIZ DE FORA",72,null,null,"22º","PRATA DA CASA","PIA","SANTOS DUMONT",117,null,null,"22º","JAMELÃO","CH FAMÍLIA MINGAL","PARAÍBA DO SUL",94,null,null,"22º","VENENO","GABRIEL/LEANDRO","PARAÍBA DO SUL",104,null,null,"22º","CAVIAR","BRUNO","TRÊS RIOS",117]
["23º","007","LEONEL","SANTOS DUMONT",70,null,null,"23º","TESOURINHA","SERGINHO","JUIZ DE FORA",105,null,null,"23º","CLONE","GIBA","TRÊS RIOS",90,null,null,"23º","KAISER","RODRIGO/BRUNO","PETRÓPOLIS",97,null,null,"23º","007","LEONEL","SANTOS DUMONT",115]
["24º","RENASCER","RÔMULO","SANTOS DUMONT",63,null,null,"24º","ZORRO","LEONEL","SANTOS DUMONT",103,null,null,"24º","PANTERA","EDER","TRÊS RIOS",89,null,null,"24º","CICATRIZ","DOUGLAS","JUIZ DE FORA",86,null,null,"24º","FARRAPO DOIDO","RODRIGO/BRUNO","PETRÓPOLIS",110]
["25º","ZUMBI","FAMÍLIA HONORATO","PARAÍBA DO SUL",63,null,null,"25º","RABO DE PEIXE","LUCIMAR/LUIZ HENRIQUE","TRÊS RIOS",103,null,null,"25º","CARIMBO","LI","BARBACENA",74,null,null,"25º","LACOSTE","GILSON/GUSTAVO","S. DUMONT/TRÊS RIOS",83,null,null,"25º","JAMELÃO","CH FAMÍLIA MINGAL","PARAÍBA DO SUL",110]
["26º","ILUMINADO CFP","CÉLIO PREVITALLI","PETRÓPOLIS",50,null,null,"26º","M10","FAMÍLIA MINGAL","PARAÍBA DO SUL",102,null,null,"26º","DUBAI","VALÉRIO","PETRÓPOLIS",64,null,null,"26º","RENASCER","PIA/ROMULO","SANTOS DUMONT",74,null,null,"26º","COYOTE","LUIS/ZECA","CHIADOR",105]
["27º",null,null,null,null,null,null,"27º","EL TORO","IGOR","PARAÍBA DO SUL",101,null,null,"27º","CARRASCO","RAFAEL POPÓ","TRÊS RIOS",64,null,null,"27º","JAMELÃO","CH FAMÍLIA MINGAL","PARAÍBA DO SUL",48,null,null,"27º","FURIA","JAJA","JUIZ DE FORA",100]
["28º",null,null,null,null,null,null,"28º","DILÚVIO","REINALDO","BARBACENA",98,null,null,"28º","ZÉ INACIO","EULER","TRÊS RIOS",60,null,null,"28º","POPAYE","LEANDRO","TRÊS RIOS",36,null,null,"28º","BERLIM","EDER","TRÊS RIOS",96]
["29º",null,null,null,null,null,null,"29º","MAGNÍFICO","CH FAMÍLIA MINGAL","PARAÍBA DO SUL",96,null,null,"29º","CAMARO","SILAS FLÁVIO","TRÊS RIOS",50,null,null,"29º","CONTRA PESO","PIA","SANTOS DUMONT",35,null,null,"29º","MALUQUINHO","GIBA","TRÊS RIOS",92]
["30º",null,null,null,null,null,null,"30º","SHOW DO MILHÃO","DANIEL","SANTOS DUMONT",95,null,null,"30º","POPAYE","LEANDRO","TRÊS RIOS",29,null,null,"30º","007","LEONEL","SANTOS DUMONT",20,null,null,"30º","ZORRO","LEONEL","SANTOS DUMONT",90]
["31º",null,null,null,null,null,null,"31º","BISTURI","GABRIEL/DJ RODRIGO","PARAÍBA DO SUL",93,null,null,"31º","ALMIRANTE","JONAS SAMPAIO","PARAÍBA DO SUL",25,null,null,"31º",null,null,null,null,null,null,"31º","SINISTRO","MATEUS MEDEIROS","PARAÍBA DO SUL",87]
["32º",null,null,null,null,null,null,"32º","PATRÃO","FAMÍLIA MINGAL","PARAÍBA DO SUL",86,null,null,"32º",null,null,null,null,null,null,"32º",null,null,null,null,null,null,"32º","PATRIOTA","PIA","SANTOS DUMONT",77]
["33º",null,null,null,null,null,null,"33º","CLONE","GIBA","TRÊS RIOS",83,null,null,"33º",null,null,null,null,null,null,"33º",null,null,null,null,null,null,"33º","VENON","MURILO","TRÊS RIOS",77]
["34º",null,null,null,null,null,null,"34º","BLACK KING","LUIZ CARLOS","PETRÓPOLIS",82,null,null,"34º",null,null,null,null,null,null,"34º",null,null,null,null,null,null,"34º","LOBO MAU","FERNANDO SIMÃO","PETRÓPOLIS",76]
["35º",null,null,null,null,null,null,"35º","CARRASCO","RAFAEL NASCIMENTO","TRÊS RIOS",78,null,null,"35º",null,null,null,null,null,null,"35º",null,null,null,null,null,null,"35º","TERRA","JOÃO PEDRO","PARAÍBA DO SUL",54]
["36º",null,null,null,null,null,null,"36º","CARIMBO","LI","BARBACENA",74,null,null,"36º",null,null,null,null,null,null,"36º",null,null,null,null,null,null,"36º","SAGA","MARCOS VINÍCIUS","PARAÍBA DO SUL",50]
["37º",null,null,null,null,null,null,"37º","ALMIRANTE","JONAS SAMPAIO","PARAÍBA DO SUL",47,null,null,"37º",null,null,null,null,null,null,"37º",null,null,null,null,null,null,"37º"]
["38º",null,null,null,null,null,null,"38º","RELÂMPAGO","LI","BARBACENA",45,null,null,"38º",null,null,null,null,null,null,"38º",null,null,null,null,null,null,"38º"]
["39º",null,null,null,null,null,null,"39º",null,null,null,null,null,null,"39º",null,null,null,null,null,null,"39º",null,null,null,null,null,null,"39º"]
["40º",null,null,null,null,null,null,"40º",null,null,null,null,null,null,"40º",null,null,null,null,null,null,"40º",null,null,null,null,null,null,"40º"]

{"sheet":"set2025","index":4,"n_rows":42,"n_cols":28,"rows_kept":42,"cut":false,"hidden":false,"merged":[[0,21,0,27],[0,0,0,5],[0,7,0,12],[0,14,0,19]]}
["07/09/2025 (DOMINGO)",null,null,null,null,null,null,"14/09/2025 (DOMINGO)",null,null,null,null,null,null,"21/09/2025 (DOMINGO)",null,null,null,null,null,null,"28/09/2025 (DOMINGO)"]
["POS.","PÁSSARO","PROPRIETÁRIO","ORIGEM","CANTOS","PONTOS",null,"POS.","PÁSSARO","PROPRIETÁRIO","ORIGEM","CANTOS","PONTOS",null,"POS.","PÁSSARO","PROPRIETÁRIO","ORIGEM","CANTOS","PONTOS",null,"POS.","PÁSSARO","PROPRIETÁRIO","ORIGEM","VASS.","CANTOS","PONTOS"]
["1º","FORASTEIRO","WL FAMÍLIA MINGAL","PARAÍBA DO SUL",191,30,null,"1º","COISA LINDA","JUNINHO","TRÊS RIOS",212,30,null,"1º","MUTLEY","MARCÃO","JUIZ DE FORA",278,30,null,"1º","MUTLEY","MARCÃO","JUIZ DE FORA",233,242,30]
["2º","FANTASMA","CLOVIS/RODRIGO","TRÊS RIOS",186,28,null,"2º","AMOSTRADINHO","PAULINHO","TRÊS RIOS",211,28,null,"2º","MAGO","SILVIO","SANTOS DUMONT",209,28,null,"2º","FANTASMA","CLOVIS/RODRIGO","TRÊS RIOS",168,190,28]
["3º","PADRINHO","LI","BARBACENA",179,26,null,"3º","FANTASMA","CLOVIS/RODRIGO","TRÊS RIOS",205,26,null,"3º","FANTASMA","CLOVIS/RODRIGO","TRÊS RIOS",183,26,null,"3º","MENINO DO MORRO","VLADEMIR/GABRIEL","PARAÍBA DO SUL",92,189,26]
["4º","FURIOSO","LI","BARBACENA",173,24,null,"4º","PADRINHO","LI","BARBACENA",199,24,null,"4º","BAIANO","REINALDO","JUIZ DE FORA",174,24,null,"4º","CAVIAR","BRUNO","TRÊS RIOS",113,182,24]
["5º","LOCOMOTIVA","CLOVIS/RODRIGO","TRÊS RIOS",162,23,null,"5º","FAKE NEWS","PEDRO/GUSTAVO","JUIZ DE FORA",198,23,null,"5º","XODO","GUSTAVO/GILSON","TRÊS RIOS/SANTOS DUMONT",150,23,null,"5º","CAPOEIRA","BAIANO","VASSOURAS",96,182,23]
["6º","MAGO","RAMON DINIZ/YGOR TARDELLI","ANTA",161,22,null,"6º","REI DO FURDUNCO","WILLIAN","TRÊS RIOS",188,22,null,"6º","PRESTO","SÍLVIO","SANTOS DUMONT",148,22,null,"6º","MALUCO","ANDRÉ/ERICK","PARAÍBA DO SUL/M. BARBOSA",168,180,22]
["7º","GEMADA","LI","BARBACENA",156,21,null,"7º","FURIOSO","LI","BARBACENA",182,21,null,"7º","AMOSTRADINHO","PAULINHO","TRÊS RIOS",148,21,null,"7º","FORASTEIRO","WL FAMÍLIA MINGAL","PARAÍBA DO SUL",83,166,21]
["8º","MAGNÍFICO","CH FAMÍLIA MINGAL","PARAÍBA DO SUL",156,20,null,"8º","GAROTO","BRUNO","TRÊS RIOS",182,20,null,"8º","ALMIRANTE","JONAS SAMPAIO","PARAÍBA DO SUL",145,20,null,"8º","IMPÉRIO","LUIZINHO","PETRÓPOLIS",107,158,20]
["9º","CHUCALHO DE COBRA","LUCIMAR/LUIZ HENRIQUE","TRÊS RIOS",154,19,null,"9º","JOIA RARA","JUNINHO","TRÊS RIOS",180,19,null,"9º","GAGUINHO","FABINHO","TRÊS RIOS",134,19,null,"9º","JHON NETO","MATHEUS/JEFERSON","PARAÍBA DO SUL",78,152,19]
["10º","BIGODINHO","PIA","SANTOS DUMONT",153,18,null,"10º","REI DA RUA","ANDRÉ AGUIAR","PARAÍBA DO SUL",177,18,null,"10º","PIVETE","GUSTAVO/GILSON","TRÊS RIOS/SANTOS DUMONT",132,18,null,"10º","CEIFADOR","BRUNO/RODRIGO","PETRÓPOLIS",92,151,18]
["11º","COMENDADOR","LUCAS","MATIAS BARBOSA",141,17,null,"11º","MAGO","RAMON/YGOR","ANTA",173,17,null,"11º","SAGACIDADE","FLÁVIO JR","JUIZ DE FORA",128,17,null,"11º","HERÓI DE GUERRA","BRUNO/RODRIGO","PETRÓPOLIS",51,151,17]
["12º","AMOSTRADINHO","PAULINHO/ARTHUR","TRÊS RIOS",134,16,null,"12º","BIGODINHO","PIA","SANTOS DUMONT",164,16,null,"12º","JAGUAR","JUNINHO/RUAN","TRÊS RIOS/MAR DE ESPANHA",125,16,null,"12º","FURIOSO","LI","BARBACENA",128,150,16]
["13º","REI DO FURDUNÇO","WILLIAN","TRÊS RIOS",132,15,null,"13º","CHUCALHO DE COBRA","LUCIMAR/LUIZ HENRIQUE","TRÊS RIOS",163,15,null,"13º","VINGADOR","SÍLVIO","SANTOS DUMONT",122,15,null,"13º","PEGA FIRME","ÍTALO SANTOS","PARAÍBA DO SUL",95,147,15]
["14º","CHARADA","HENRIQUE","PARAÍBA DO SUL",130,14,null,"14º","LOCOMOTIVA","CLOVIS/RODRIGO","TRÊS RIOS",160,14,null,"14º","CLONE","GIBA","TRÊS RIOS",120,14,null,"14º","POLÊMICO","DHACO","PARAÍBA DO SUL",81,138,14]
["15º","FARRAPO DOIDO","RODRIGO/BRUNO","PETRÓPOLIS",125,13,null,"15º","COMENDADOR","LUCAS","MATIAS BARBOSA",157,13,null,"15º","BLINDADO","SAMUEL","SANTOS DUMONT",116,13,null,"15º","JAGUAR","JUNINHO/RUAN","TRÊS RIOS/MAR DE ESPANHA",156,137,13]
["16º","CAVIAR","BRUNO","TRÊS RIOS",124,null,null,"16º","CLONE","GIBA","TRÊS RIOS",157,null,null,"16º","LOCOMOTIVA","CLOVIS/RODRIGO","TRÊS RIOS",116,null,null,"16º","CHUCALHO DE COBRA","LUCIMAR/LUIZ HENRIQUE","TRÊS RIOS",91,136]
["17º","FAIXA PRETA","GABRIEL/WL FAMÍLIA MINGAL","PARAÍBA DO SUL",120,null,null,"17º","RELÂMPAGO","LI","BARBACENA",156,null,null,"17º","SINISTRO","MATEUS MEDEIROS","PARAÍBA DO SUL",113,null,null,"17º","COMENDADOR","LUCAS","MATIAS BARBOSA",150,134]
["18º","BAIANO","JEFERSON","PARAÍBA DO SUL",114,null,null,"18º","CEIFADOR","LI","BARBACENA",143,null,null,"18º","TESOURINHA","SERGINHO","JUIZ DE FORA",112,null,null,"18º","FARRAPO DOIDO","RODRIGO/BRUNO","PETRÓPOLIS",79,134]
["19º","JHON NETO","JEFFERSON/MATHEUS","PARAÍBA DO SUL",111,null,null,"19º","SPOCK","DANIEL/TIM","JUIZ DE FORA",137,null,null,"19º","OURO FINO","LEANDRO","TRÊS RIOS",110,null,null,"19º","JOVEM TALENTO","PEDRO/GUSTAVO","JUIZ DE FORA",105,133]
["20º","ESPETÁCULO","FAMÍLIA HONORATO","PARAÍBA DO SUL",110,null,null,"20º","BYD","RUAN","MAR DE ESPANHA",136,null,null,"20º","BERLIM","EDER","TRÊS RIOS",110,null,null,"20º","LOCOMOTIVA","CLOVIS/RODRIGO","TRÊS RIOS",58,133]
["21º","GAGUINHO","FABINHO","TRÊS RIOS",107,null,null,"21º","JHON NETO","JEFFERSON/MATHEUS","PARAÍBA DO SUL",135,null,null,"21º","MALUQUINHO","GIBA","TRÊS RIOS",100,null,null,"21º","BAIANO","REINALDO","JUIZ DE FORA",141,130]
["22º","BERLIM","EULER","TRÊS RIOS",105,null,null,"22º","PIVETE","GILSON/GUSTAVO","S. DUMONT/TRÊS RIOS",133,null,null,"22º","MINOTAURO","HENRIQUE","ANTA",98,null,null,"22º","VENENO","RUANNYTO SANTOS","DUMONT",66,130]
["23º","CLONE","GIBA","TRÊS RIOS",103,null,null,"23º","ABUSADO","ELVIS","JUIZ DE FORA",132,null,null,"23º","PEGA FIRME","ITALO SANTOS","PARAÍBA DO SUL",97,null,null,"23º","COWBOY","SILVAN","JUIZ DE FORA",114,125]
["24º","HERÓI DE GUERRA","RODRIGO/BRUNO","PETRÓPOLIS",102,null,null,"24º","DOLLAR","DANIEL LEAL","PARAÍBA DO SUL",131,null,null,"24º","REBOLIÇO","NEI","PARAÍBA DO SUL",72,null,null,"24º","RENASCER","RÔMULO/PIÁ","SANTOS DUMONT",62,125]
["25º","TALISMÃ","HENRIQUE","ANTA",98,null,null,"25º","BALINHA","WL FAMÍLIA MINGAL","PARAÍBA DO SUL",127,null,null,"25º","JHON NETO","JEFFERSON/MATHEUS","PARAÍBA DO SUL",58,null,null,"25º","REI DO FURDUNCO","WILLIAN","TRÊS RIOS",101,114]
["26º","CASCA DE BALA","AMILTON","JUIZ DE FORA",97,null,null,"26º","PINTA NEGRA","RATINHO","VALENÇA",120,null,null,"26º","CAMPEÃO","FÁBIO PEREIRA","TRÊS RIOS",52,null,null,"26º","?","LUCIMAR/LUIZ HENRIQUE","TRÊS RIOS",75,114]
["27º","JAMELÃO","CH FAMÍLIA MINGAL","PARAÍBA DO SUL",94,null,null,"27º","PANTERA","PABLO","PETRÓPOLIS",119,null,null,"27º","WOLVERINE","XANDÃO","PARAÍBA DO SUL",51,null,null,"27º","REALEZA","VINÍCIUS","AREAL",72,113]
["28º","CARRASCO","DANILO MOREIRA","TRÊS RIOS",93,null,null,"28º","CARRASCO","DANILO MOREIRA","TRÊS RIOS",115,null,null,"28º",null,null,null,null,null,null,"28º","VENON","MURILO","TRÊS RIOS",50,103]
["29º","TESOURINHA","SERGINHO","JUIZ DE FORA",92,null,null,"29º","KAISER","RODRIGO/BRUNO","PETRÓPOLIS",106,null,null,"29º",null,null,null,null,null,null,"29º","BIPOLAR","VINY/ERICK","MATIAS BARBOSA",101,102]
["30º","PIRATA","GABRIEL FERREIRA","PETRÓPOLIS",89,null,null,"30º","FAIXA PRETA","GABRIEL/WL FAMÍLIA MINGAL","PARAÍBA DO SUL",106,null,null,"30º",null,null,null,null,null,null,"30º","FEDERAL","SILVAN","JUIZ DE FORA",85,101]
["31º","BAILARINO","MATHEUS/FELIPE","MATIAS BARBOSA",88,null,null,"31º","SUB ZERO","CH FAMÍLIA MINGAL","PARAÍBA DO SUL",95,null,null,"31º",null,null,null,null,null,null,"31º","PITBULL","DIEGO NEVES","JUIZ DE FORA",84,97]
["32º","WOLVERINE","XANDÃO","PARAÍBA DO SUL",87,null,null,"32º","OURO FINO","LEANDRO","TRÊS RIOS",94,null,null,"32º",null,null,null,null,null,null,"32º","GAGUINHO","JUNINHO","TRÊS RIOS",74,94]
["33º","FURIA","JAJA","JUIZ DE FORA",84,null,null,"33º","FILHOTE","JULIN","PARAÍBA DO SUL",88,null,null,"33º",null,null,null,null,null,null,"33º","RAGNAR","ÍNDIO","PETRÓPOLIS",64,90]
["34º","VENON","MURILO","TRÊS RIOS",78,null,null,"34º","WOLVERINE","XANDÃO","PARAÍBA DO SUL",87,null,null,"34º",null,null,null,null,null,null,"34º","CARRASCO","DANILO MOREIRA","TRÊS RIOS",110,89]
["35º","BALA PERDIDA","GILSON/GUSTAVO","SANTOS DUMONT",38,null,null,"35º","ALMIRANTE","JONAS SAMPAIO","PARAÍBA DO SUL",75,null,null,"35º",null,null,null,null,null,null,"35º","BAILARINO","MATHEUS/FELIPE","MATIAS BARBOSA",105,76]
["36º","PIT BULL","DIEGO","JUIZ DE FORA",38,null,null,"36º","DO BRONX","PABLO","PETRÓPOLIS",58,null,null,"36º",null,null,null,null,null,null,"36º","THANOS","SILAS FLÁVIO","TRÊS RIOS",76,72]
["37º","PATRIOTA","PIA","SANTOS DUMONT",25,null,null,"37º","RARIDADE","GUSTAVO/JHONATA","PARAÍBA DO SUL",54,null,null,"37º",null,null,null,null,null,null,"37º","SOBREVIVENTE","WL FAMÍLIA MINGAL","PARAÍBA DO SUL",51,72]
["38º",null,null,null,null,null,null,"38º","VIOLENTO","WALTER MORELI","PETRÓPOLIS",47,null,null,"38º",null,null,null,null,null,null,"38º","BISON","NATHAN","LEVY GASPARIAN",90,66]
["39º",null,null,null,null,null,null,"39º","MOLEQUE","RAFAEL","PARAÍBA DO SUL",41,null,null,"39º",null,null,null,null,null,null,"39º","GUERREIRO","ANTÔNIO MENEGUIT","CACHOEIRAS DE MACACU",51,60]
["40º",null,null,null,null,null,null,"40º",null,null,null,null,null,null,"40º",null,null,null,null,null,null,"40º","ENIGMA","DUDU","TRÊS RIOS",119,46]

{"sheet":"out2025","index":5,"n_rows":42,"n_cols":27,"rows_kept":42,"cut":false,"hidden":false,"merged":[[0,0,0,5],[0,7,0,12],[0,14,0,19],[0,21,0,26]]}
["05/10/2025 (DOMINGO)",null,null,null,null,null,null,"12/10/2025 (DOMINGO)",null,null,null,null,null,null,"19/10/2025 (DOMINGO)",null,null,null,null,null,null,"26/10/2025 (DOMINGO)"]
["POS.","PÁSSARO","PROPRIETÁRIO","ORIGEM","CANTOS","PONTOS",null,"POS.","PÁSSARO","PROPRIETÁRIO","ORIGEM","CANTOS","PONTOS",null,"POS.","PÁSSARO","PROPRIETÁRIO","ORIGEM","CANTOS","PONTOS",null,"POS.","PÁSSARO","PROPRIETÁRIO","ORIGEM","CANTOS","PONTOS"]
["1º","FURIOSO","LI","BARBACENA",218,30,null,"1º","MUTLEY","MARCÃO","JUIZ DE FORA",271,30,null,"1º","FARAÓ","ANDRÉ LUÍS","PARAÍBA DO SUL",210,30,null,"1º","FANTASMA","CLÓVIS/RODRIGO","TRÊS RIOS",196,30]
["2º","FORASTEIRO","WL FAMÍLIA MINGAL","PARAÍBA DO SUL",208,28,null,"2º","MAGO","SÍLVIO","SANTOS DUMONT",235,28,null,"2º","FAKE NEWS","MOACIR/MARCOS","GUARARÁ",209,28,null,"2º","FAKE NEWS","MOACIR/MARCOS","GUARARÁ",192,28]
["3º","PRESTO","SÍLVIO","SANTOS DUMONT",205,26,null,"3º","MALUCO","ANDRÉ/ERICK","PARAÍBA DO SUL/M. BARBOSA",206,26,null,"3º","FANTASMA","CLÓVIS/RODRIGO","TRÊS RIOS",183,26,null,"3º","PÉROLA NEGRA","ROMÁRIO OLIVEIRA","PETRÓPOLIS",182,26]
["4º","MALUCO","ANDRÉ/ERICK","PARAÍBA DO SUL",204,24,null,"4º","TIK TOK","RAFAEL SOUZA","BARBACENA",175,24,null,"4º","JHON NETO","MATHEUS/JÉFERSON","PARAÍBA DO SUL",180,24,null,"4º","LOCOMOTIVA","CLÓVIS/RODRIGO","TRÊS RIOS",178,24]
["5º","PADRINHO","LI","BARBACENA",191,23,null,"5º","CAVIAR","BRUNO","TRÊS RIOS",166,23,null,"5º","DO BRONX","PABLO","ITAIPAVA",177,23,null,"5º","CAVIAR","BRUNO","TRÊS RIOS",156,23]
["6º","MUTLEY","MARCÃO","JUIZ DE FORA",188,22,null,"6º","MENINO DO MORRO","VLADEMIR/GABRIEL","PARAÍBA DO SUL",157,22,null,"6º","CAVIAR","BRUNO","TRÊS RIOS",167,22,null,"6º","PANTERA NEGRA","PABLO","ITAIPAVA",152,22]
["7º","CORINGA","ERICK/JOVEM","MATIAS BARBOSA",187,21,null,"7º","GAGUINHO","JUNINHO","TRÊS RIOS",149,21,null,"7º","CHUCALHO DE COBRA","LUCIMAR/LUIZ HENRIQUE","TRÊS RIOS",161,21,null,"7º","PEGA FIRME","ITALO SANTOS","PARAÍBA DO SUL",152,21]
["8º","MAGO","SÍLVIO","SANTOS DUMONT",175,20,null,"8º","ESPOLETA","RAFAEL SOUZA","NITERÓI",145,20,null,"8º","PIT BULL","DIEGO NEVES","JUIZ DE FORA",161,20,null,"8º","DO BRONX","PABLO","ITAIPAVA",151,20]
["9º","CAVIAR","BRUNO","TRÊS RIOS",171,19,null,"9º","FERRARI","CT DOS MOLEQUES","PARAÍBA DO SUL",124,19,null,"9º","JAGUAR","JUNINHO/RUAN","T. RIOS/MAR DE ESPANHA",157,19,null,"9º","DELÍRIO","ROMÁRIO OLIVEIRA","PETRÓPOLIS",143,19]
["10º","CAPOEIRA","BAIANO","VASSOURAS",169,18,null,"10º","PATRÃO","WL FAMÍLIA MINGAL","PARAÍBA DO SUL",120,18,null,"10º","REI DO FURDUNÇO","WILLIAN","TRÊS RIOS",154,18,null,"10º","XODÓ","GUSTAVO/GILSON","TRÊS RIOS/S. DUMONT",138,18]
["11º","SHEIK","JONAS","TRÊS RIOS",165,17,null,"11º","PRESTO","SÍLVIO","SANTOS DUMONT",118,17,null,"11º","JIRAIA","GABRIEL/TIAGO","PARAÍBA DO SUL",151,17,null,"11º","FARRAPO DOIDO","JOÃO MARCOS","AREAL",137,17]
["12º","REI DO FURDUNÇO","WILLIAN","TRÊS RIOS",156,16,null,"12º","IMPÉRIO","LUIZINHO","PETRÓPOLIS",117,16,null,"12º","BMW","CT ALPHA","PARAÍBA DO SUL",147,16,null,"12º","PODEROSO CHEFINHO","RODRIGO/BRUNO","PETRÓPOLIS",127,16]
["13º","FARRAPO DOIDO","RODRIGO/BRUNO","PETRÓPOLIS",153,15,null,"13º","CORONEL","DANIEL/LUCAS","JUIZ DE FORA",115,15,null,"13º","AMOSTRADINHO","PAULINHO/ARTHUR","TRÊS RIOS",145,15,null,"13º","REALEZA","VINÍCIUS","AREAL",125,15]
["14º","FANTASMA","CLÓVIS/RODRIGO","TRÊS RIOS",153,14,null,"14º","PEGA FIRME","ITALO SANTOS","PARAÍBA DO SUL",114,14,null,"14º","BELGA","RODRIGO/BRUNO","PETRÓPOLIS",140,14,null,"14º","IMPERADOR","GUSTAVO/GILSON","TRÊS RIOS/S. DUMONT",123,14]
["15º","VINGADOR","SÍLVIO","SANTOS DUMONT",151,13,null,"15º","REI DAVI","IGOR","PARAÍBA DO SUL",113,13,null,"15º","IMPÉRIO","LUIZINHO","PETRÓPOLIS",133,13,null,"15º","BISON","NATHAN","LEVY GASPARIAN",120,13]
["16º","COPACABANA","LUIZ","JUIZ DE FORA",151,null,null,"16º","JAMELÃO","CH FAMÍLIA MINGAL","PARAÍBA DO SUL",112,null,null,"16º","POLÊMICO","DHACO","PARAÍBA DO SUL",129,null,null,"16º","MAGO NEGRO","CLÓVIS/RODRIGO","TRÊS RIOS",119]
["17º","IFOOD","YURI ALVES","MATIAS BARBOSA",147,null,null,"17º","GUERREIRO","PAULINHO","TRÊS RIOS",110,null,null,"17º","VENON JÚNIOR","MURILO","TRÊS RIOS",126,null,null,"17º","CAMPEÃO","RUAN","TRÊS RIOS",109]
["18º","DOLLAR","CT DOS MOLEQUES","PARAÍBA DO SUL",145,null,null,"18º","VENENO","RUANNYTO","SANTOS DUMONT",108,null,null,"18º","RENASCER","PIA/RÔMULO","SANTOS DUMONT",122,null,null,"18º","OURO FINO","EULER","TRÊS RIOS",104]
["19º","VENENO","LEANDRO/GABRIEL","PARAÍBA DO SUL",139,null,null,"19º","JHON NETO","MATHEUS/JÉFERSON","PARAÍBA DO SUL",105,null,null,"19º","FORASTEIRO","WL FAMÍLIA MINGAL","PARAÍBA DO SUL",118,null,null,"19º","GUERREIRO","PAULINHO/ARTHUR","TRÊS RIOS",103]
["20º","POLÊMICO","DHACO","PARAÍBA DO SUL",125,null,null,"20º","RARIDADE","GUSTAVO/JHONATAN","PARAÍBA DO SUL",100,null,null,"20º","PETER PAN","RAFAEL","PARAÍBA DO SUL",116,null,null,"20º","PIT BULL","DIEGO NEVES","JUIZ DE FORA",100]
["21º","MAGNÍFICO","CH FAMÍLIA MINGAL","PARAÍBA DO SUL",124,null,null,"21º","POLÊMICO","LÁZARO","PARAÍBA DO SUL",96,null,null,"21º","?","LUCIMAR/LUIZ HENRIQUE","TRÊS RIOS",114,null,null,"21º","RESISTENTE","JOSÉ SÉRGIO","PARAÍBA DO SUL",96]
["22º","LOCOMOTIVA","CLÓVIS/RODRIGO","TRÊS RIOS",122,null,null,"22º","PETER PAN","RAFAEL","PARAÍBA DO SUL",94,null,null,"22º","ASTRO","MARCELO","SANTOS DUMONT",110,null,null,"22º","BERLIM","EULER","TRÊS RIOS",96]
["23º","PEGA FIRME","ITALO SANTOS","PARAÍBA DO SUL",121,null,null,"23º","AMOSTRADINHO","PAULINHO/ARTHUR","TRÊS RIOS",87,null,null,"23º","MENINO DO MORRO","VLADEMIR/GABRIEL","PARAÍBA DO SUL",110,null,null,"23º","ADRENALINA","JÚLIO CÉSAR","PETRÓPOLIS",94]
["24º","RABUGENTO","ALEX","PETRÓPOLIS",120,null,null,"24º","BINHA PRETO","EULER","TRÊS RIOS",83,null,null,"24º","CHARADA","GABRIEL MARTINS/JOSENILTON","PARAÍBA DO SUL",107,null,null,"24º","PIVETE","GILSON/GUSTAVO","TRÊS RIOS/S. DUMONT",93]
["25º","PIVETE","GILSON/GUSTAVO","TRÊS RIOS/S. DUMONT",118,null,null,"25º","MAGNÍFICO","CH FAMÍLIA MINGAL","PARAÍBA DO SUL",82,null,null,"25º","ASTRO","CT ALPHA","PARAÍBA DO SUL",106,null,null,"25º","ASTRO","FAMÍLIA MINGAL","PARAÍBA DO SUL",91]
["26º","CARIMBO","LI","BARBACENA",110,null,null,"26º","MÁGICO","FÁBIO","TRÊS RIOS",76,null,null,"26º","CORINGA","GUSTAVO/JHONATA","PARAÍBA DO SUL",105,null,null,"26º","BICO BRANCO","RICARDINHO","PARAÍBA DO SUL",91]
["27º","TREM","CORELIO/RAFAEL","PARAÍBA DO SUL",110,null,null,"27º","BISON","NATHAN","LEVY GASPARIAN",73,null,null,"27º","RAGNAR","?","PETRÓPOLIS",101,null,null,"27º","MACALE","GUSTAVO/GILSON","TRÊS RIOS/S. DUMONT",90]
["28º","FAVELA","CABRITO/GABRIEL","MATIAS BARBOSA",107,null,null,"28º","OURO FINO","EULER","TRÊS RIOS",71,null,null,"28º","SINISTRO","MATEUS MEDEIROS","PARAÍBA DO SUL",81,null,null,"28º","BOLT","RODRIGO/BRUNO","PETRÓPOLIS",90]
["29º","PROFESSOR","RAUANI VALLE","PETRÓPOLIS",106,null,null,"29º","CORINGA","JHONATAN/GUSTAVO","PARAÍBA DO SUL",50,null,null,"29º","DA ROÇA","NATHAN","LEVY GASPARIAN",80,null,null,"29º","MOBRIM","GIBA","TRÊS RIOS",85]
["30º","CATRACA","ADRIANO","JUIZ DE FORA",96,null,null,"30º","DOURADO","JÉFERSON","PARAÍBA DO SUL",38,null,null,"30º","220","LEANDRO/RUAN","PARAÍBA DO SUL",77,null,null,"30º","CHEQUE MATE","EULER","TRÊS RIOS",85]
["31º","PELÉ","WILLIAM","TRÊS RIOS",93,null,null,"31º",null,null,null,null,null,null,"31º","HULK","CH FAMÍLIA MINGAL","PARAÍBA DO SUL",74,null,null,"31º","SELVAGEM","HENRIQUE","TRÊS RIOS",63]
["32º","CIBORG","HENRIQUE","ANTA",83,null,null,"32º",null,null,null,null,null,null,"32º","DECO","CLAUDINHO","TRÊS RIOS",73,null,null,"32º","FUGITIVO","LUCIANO","PARAÍBA DO SUL",60]
["33º","PIKACHU","YURI ALVES","MATIAS",72,null,null,"33º",null,null,null,null,null,null,"33º","BRADDOCK","GUSTAVO/JHONATA","PARAÍBA DO SUL",58,null,null,"33º","PESADELO","HENRIQUE","ANTA",57]
["34º","CORINGA","LECO","PETRÓPOLIS",71,null,null,"34º",null,null,null,null,null,null,"34º","RISADINHA","ARTUR","TRÊS RIOS",56,null,null,"34º"]
["35º","JILÓ","GABRIEL/WL FAMÍLIA MINGAL","PARAÍBA DO SUL",61,null,null,"35º",null,null,null,null,null,null,"35º","PIU PIU","LUIZ GUSTAVO","PARAÍBA DO SUL",52,null,null,"35º"]
["36º","PROFETA","DHACO","PARAÍBA DO SUL",49,null,null,"36º",null,null,null,null,null,null,"36º","MAÇARICO","VALDECIR","PETRÓPOLIS",28,null,null,"36º"]
["37º","WOLVERINE","ARTHUR/PAULINHO","TRÊS RIOS",39,null,null,"37º",null,null,null,null,null,null,"37º","ARQUEIRO","DIEGO NEVES","JUIZ DE FORA",28,null,null,"37º"]
["38º","CAVEIRÃO","RODRIGO","PETRÓPOLIS",33,null,null,"38º",null,null,null,null,null,null,"38º",null,null,null,null,null,null,"38º"]
["39º",null,null,null,null,null,null,"39º",null,null,null,null,null,null,"39º",null,null,null,null,null,null,"39º"]
["40º",null,null,null,null,null,null,"40º",null,null,null,null,null,null,"40º",null,null,null,null,null,null,"40º"]

{"sheet":"nov2025","index":6,"n_rows":65,"n_cols":38,"rows_kept":65,"cut":false,"hidden":false,"merged":[[0,0,0,6],[0,8,0,14],[0,16,0,21],[0,23,0,29],[0,31,0,37]]}
["02/11/2025 (DOMINGO)",null,null,null,null,null,null,null,"09/11/2025 (DOMINGO)",null,null,null,null,null,null,null,"16/11/2025 (DOMINGO)",null,null,null,null,null,null,"23/11/2025 (DOMINGO)",null,null,null,null,null,null,null,"30/11/2025 (DOMINGO)"]
["POS.","PÁSSARO","PROPRIETÁRIO","ORIGEM","VASS.","CANTOS","PONTOS",null,"POS.","PÁSSARO","PROPRIETÁRIO","ORIGEM","VASS.","CANTOS","PONTOS",null,"POS.","PÁSSARO","PROPRIETÁRIO","ORIGEM","CANTOS","PONTOS",null,"POS.","PÁSSARO","PROPRIETÁRIO","ORIGEM","VASS.","CANTOS","PONTOS",null,"POS.","PÁSSARO","PROPRIETÁRIO","ORIGEM","VASS.","CANTOS","PONTOS"]
["1º","FAKE NEWS","MOACIR/MARCOS","GUARARÁ",134,205,30,null,"1º","500 MILHAS","FLÁVIO","PATY DO ALFERES",95,215,30,null,"1º","RELÂMPAGO","LI","BARBACENA",246,30,null,"1º","SAFADÃO","DANIEL/LUCAS","JUIZ DE FORA",169,230,30,null,"1º","PALETÓ","LI","BARBACENA",111,278,30]
["2º","RAPIDEZ","REINALDO","JUIZ DE FORA",128,188,28,null,"2º","PETER PAN","RAFAEL","PARAÍBA DO SUL",92,199,28,null,"2º","DUBAI","VALDO MÁRCIO","TRÊS RIOS",191,28,null,"2º","PALETÓ","LI","BARBACENA",164,198,28,null,"2º","GABIGOL","RAPHAEL/ROGÉRIO","MATIAS BARBOSA",115,263,28]
["3º","FANTASMA","CLÓVIS/RODRIGO","TRÊS RIOS",128,180,26,null,"3º","SHEIK","JONAS","TRÊS RIOS",124,197,26,null,"3º","I FOOD","YURI","MATIAS BARBOSA",176,26,null,"3º","MALUCO","ANDRÉ LUIS","PARAÍBA DO SUL",189,186,26,null,"3º","TIK TOK","RAFAEL","BARBACENA",148,260,26]
["4º","PODEROSO CHEFINHO","RODRIGO/BRUNO","PETRÓPOLIS",126,165,24,null,"4º","CAPOEIRA","BAIANO","VASSOURAS",69,196,24,null,"4º","PADRINHO","LI","BARBACENA",175,24,null,"4º","RELÂMPAGO","LI","BARBACENA",218,176,24,null,"4º","REMY","RAFAEL","BARBACENA",163,248,24]
["5º","IMPÉRIO","LUIZINHO","PETRÓPOLIS",97,165,23,null,"5º","PALETO","LI","BARBACENA",87,195,23,null,"5º","FARAÓ","ANDRÉ LUIS","PARAÍBA DO SUL",169,23,null,"5º","CASCAVEL","BRUNO/RODRIGO","PETRÓPOLIS",117,172,23,null,"5º","EL CHAPO","RAFAEL","BARBACENA",157,222,23]
["6º","PANTERA NEGRA","PABLO","ITAIPAVA",109,163,22,null,"6º","ASTEROIDE","JOHNATAN","UBÁ",89,193,22,null,"6º","REVELAÇÃO","LUCAS","TRÊS RIOS",158,22,null,"6º","MEGAMENTE","FLÁVIO","PATY DO ALFERES",83,171,22,null,"6º","VENENO","LISSANDRO","VASSOURAS",130,203,22]
["7º","VENON JÚNIOR","MURILO","TRÊS RIOS",99,162,21,null,"7º","FAKE NEWS","MOACIR/MARCOS","GUARARÁ",130,191,21,null,"7º","PALETO","LI","BARBACENA",153,21,null,"7º","FAKE NEWS","MOACIR/MARCOS","GUARARÁ",139,170,21,null,"7º","BRUXO","WERCOLES","ALÉM PARAÍBA",143,200,21]
["8º","PIT BULL","DIEGO NEVES","JUIZ DE FORA",138,160,20,null,"8º","OVERDOSE","BRUNO","VASSOURAS",69,187,20,null,"8º","XANDÃO","LI","BARBACENA",153,20,null,"8º","OVERDOSE","BRUNO R.","VASSOURAS",129,169,20,null,"8º","SAFADÃO","DANIEL/LUCAS","JUIZ DE FORA",163,191,20]
["9º","FARAÓ","ANDRÉ LUÍS","PARAÍBA DO SUL",78,158,19,null,"9º","MUTLEY","MARCÃO","JUIZ DE FORA",218,174,19,null,"9º","REI DO FURDUNÇO","WILLIAN","TRÊS RIOS",145,19,null,"9º","FARRAPO DOIDO","JOÃO MARCOS","AREAL",66,167,19,null,"9º","FURIOSO","LI","BARBACENA",117,191,19]
["10º","CAVIAR","BRUNO","TRÊS RIOS",119,150,18,null,"10º","MENINO DO MORRO","GABRIEL/VLADIMIR","PARAÍBA DO SUL",92,174,18,null,"10º","TORMENTO","ANTÔNIO","MATIAS BARBOSA",143,18,null,"10º","BINHA PRETO","EULER","TRÊS RIOS",98,160,18,null,"10º","VENENO","RUANNYTO","SANTOS DUMONT",88,187,18]
["11º","MACALÉ","GUSTAVO/GILSON","TRÊS RIOS/S. DUMONT",91,150,17,null,"11º","MALUCO","ANDRÉ LUIS","PARAÍBA DO SUL",202,169,17,null,"11º","POLÊMICO","GABRIEL M./RICARDINHO","PARAÍBA DO SUL",142,17,null,"11º","FAVELA","CABRITO/GABRIEL","MATIAS BARBOSA",57,160,17,null,"11º","CAMISA 10","JULIANO PEREIRA","VALENÇA",146,184,17]
["12º","GAROTO","BRUNO","TRÊS RIOS",70,150,16,null,"12º","FERRARI","CT ALPHA","PARAÍBA DO SUL",90,166,16,null,"12º","RAIO","ZECA/LUIS","CHIADOR",142,16,null,"12º","FERRARI","BAIANO","VASSOURAS",67,152,16,null,"12º","CAVIAR","BRUNO","TRÊS RIOS",112,180,16]
["13º","DO BRONX","PABLO","ITAIPAVA",104,146,15,null,"13º","FURIOSO","LI","BARBACENA",148,162,15,null,"13º","FURIOSO","LI","BARBACENA",141,15,null,"13º","BESTEIRINHA","EULER","TRÊS RIOS",54,149,15,null,"13º","FAVELA","JHONATAN","MATIAS BARBOSA",113,177,15]
["14º","PRESTO","SÍLVIO","SANTOS DUMONT",103,142,14,null,"14º","PANTERA NEGRA","PABLO","ITAIPAVA",108,158,14,null,"14º","FAIXA PRETA","VITOR MÁRCIO","TRÊS RIOS",140,14,null,"14º","EL CHAPO","RAFAEL","BARBACENA",99,142,14,null,"14º","MUTLEY","MARCÃO","JUIZ DE FORA",153,174,14]
["15º","FERRARI","CT ALPHA","PARAÍBA DO SUL",110,141,13,null,"15º","VEDITA","HARRISON","SANTOS DUMONT",125,154,13,null,"15º","TOMA JACK","IGOR","PARAÍBA DO SUL",125,13,null,"15º","INVASÃO","WATILA","JUIZ DE FORA",74,139,13,null,"15º","FANTASMA","CLÓVIS/RODRIGO","TRÊS RIOS",93,169,13]
["16º","ASTRO","DHACO","PARAÍBA DO SUL",104,140,null,null,"16º","MAGO NEGRO","CLÓVIS/RODRIGO","TRÊS RIOS",98,154,null,null,"16º","FANTASMA","CLÓVIS/RODRIGO","TRÊS RIOS",123,null,null,"16º","PIT BULL","DIEGO NEVES","JUIZ DE FORA",95,137,null,null,"16º","FAKE NEWS","MOACIR","GUARARÁ",122,168]
["17º","MENINO DO MORRO","GABRIEL/VLADIMIR","PARAÍBA DO SUL",126,138,null,null,"17º","BOTA CARA","GABRIEL/DJ RODRIGO","PARAÍBA DO SUL",115,153,null,null,"17º","PIKACHU","YURI","MATIAS BARBOSA",119,null,null,"17º","CASSINO","JUNINHO","TRÊS RIOS",90,132,null,null,"17º","TENTAÇÃO","HERALDO","PETRÓPOLIS",143,165]
["18º","BOLT","ADRIANO","PETRÓPOLIS",135,135,null,null,"18º","TK","MW MÁRIO/EANDER","BICAS",99,151,null,null,"18º","TOTÓ","GIBA","TRÊS RIOS",118,null,null,"18º","RAPIDEZ","REINALDO","JUIZ DE FORA",83,127,null,null,"18º","JIRAYA","GABRIEL/TIAGO CORRÊA","PARAÍBA DO SUL",120,161]
["19º","REI DO FURDUNÇO","WILLIAN","TRÊS RIOS",102,134,null,null,"19º","TORMENTO","ANTÔNIO","MATIAS BARBOSA",95,150,null,null,"19º","ESPOLETA","RAFAEL SOUZA","NITERÓI",117,null,null,"19º","LANTERNA VERDE","MAGON","VASSOURAS",70,124,null,null,"19º","ROMÁRIO","MÁRCIO","PARAÍBA DO SUL",111,156]
["20º","PEGA FIRME","ITALO SANTOS","PARAÍBA DO SUL",97,130,null,null,"20º","CRISTAL","FAMÍLIA HONORATO","PARAÍBA DO SUL",87,147,null,null,"20º","MAGNÍFICO","ANTÔNIO","MATIAS BARBOSA",114,null,null,"20º","REI DO FURDUNÇO","WILLIAN","TRÊS RIOS",104,121,null,null,"20º","CORINGA","ANTÔNIO MENEGUIT","CACHOEIRA DE MACACU",88,153]
["21º","LOCOMOTIVA","CLÓVIS/RODRIGO","TRÊS RIOS",145,127,null,null,"21º","ARANHA","EDSON","RODEIRO",108,144,null,null,"21º","SELVAGEM","WL FAMÍLIA MINGAL","PARAÍBA DO SUL",107,null,null,"21º","GABIGOL","JACSON","PARAÍBA DO SUL",125,120,null,null,"21º","PIT BULL","JOÃO MARCOS","AREAL",130,151]
["22º","MALIBU","NICOLAS","ITAIPAVA",92,126,null,null,"22º","TADALA","GABRIEL BRUM","AVELAR",122,141,null,null,"22º","FAIXA PRETA","LUCIANO","PARAÍBA DO SUL",100,null,null,"22º","BOPE","VITOR MÁRCIO","TRÊS RIOS",94,118,null,null,"22º","ZÉ INÁCIO","GUSTAVO/JHONATA","PARAÍBA DO SUL",80,150]
["23º","SELVAGEM","HENRIQUE","TRÊS RIOS",80,125,null,null,"23º","PEROLA NEGRA","ROMÁRIO OLIVEIRA","?",105,141,null,null,"23º","FAISKA","JOSÉ SÉRGIO","PARAÍBA DO SUL",94,null,null,"23º","XODÓ","GUSTAVO/GILSON","TRÊS RIOS/S. DUMONT",86,117,null,null,"23º","TK","WANDER BOLOTARI","BICAS",113,148]
["24º","MARRUA","NATHAN","LEVY GASPARIAN",51,125,null,null,"24º","PIT BULL","DIEGO NEVES","JUIZ DE FORA",109,138,null,null,"24º","GUERREIRO","PAULINHO/ARTHUR","TRÊS RIOS",85,null,null,"24º","CHARADA","JONAS","TRÊS RIOS",86,117,null,null,"24º","MAESTRO","CH FAMÍLIA MINGAL","PARAÍBA DO SUL",83,146]
["25º","VINGADOR","SÍLVIO","SANTOS DUMONT",71,123,null,null,"25º","PODEROSO CHEFINHO","RODRIGO/BRUNO","PETRÓPOLIS",110,136,null,null,"25º","FANTÁSTICO","LÉO NEGÃO","JUIZ DE FORA",84,null,null,"25º","PIKACHU","YURI","MATIAS BARBOSA",76,116,null,null,"25º","TAIPAN","CARLOS RMC","RIO DE JANEIRO",109,144]
["26º","GUERREIRO","PAULINHO","TRÊS RIOS",78,121,null,null,"26º","DO BRONX","PABLO","ITAIPAVA",117,135,null,null,"26º","TROVÃO","EDER","TRÊS RIOS",81,null,null,"26º","ZORRO","MANDÍBULA","PETRÓPOLIS",77,111,null,null,"26º","PETER PAN","RAFAEL","PARAÍBA DO SUL",78,143]
["27º","POLÊMICO","DHACO","PARAÍBA DO SUL",73,121,null,null,"27º","REI DO FURDUNÇO","WILLIAN","TRÊS RIOS",105,133,null,null,"27º","?","CLÓVIS/RODRIGO","TRÊS RIOS",79,null,null,"27º","MENINO DO MORRO","GABRIEL/VLADIMIR","PARAÍBA DO SUL",92,106,null,null,"27º","EL DOIDO","JONAS","TRÊS RIOS",102,140]
["28º","TOMA JACK","IGOR","PARAÍBA DO SUL",64,120,null,null,"28º","CHEFINHO","IGOR","PARAÍBA DO SUL",65,133,null,null,"28º","ASTRO","FAMÍLIA MINGAL","PARAÍBA DO SUL",74,null,null,"28º","I FOOD","YURI","MATIAS BARBOSA",84,106,null,null,"28º","IMPERADOR","LEANDRO/GABRIEL","PARAÍBA DO SUL",119,139]
["29º","PELÉ","WILLIAM","TRÊS RIOS",125,118,null,null,"29º","CONHAQUE","CHULAPA","PATY DO ALFERES",111,126,null,null,"29º","TIO PATINHAS","VICTOR","TRÊS RIOS",73,null,null,"29º","XANDÃO","LI","BARBACENA",80,105,null,null,"29º","FORASTEIRO","GABRIEL P./WL FAM. MINGAL","PARAÍBA DO SUL",112,138]
["30º","FAIXA PRETA","LUCIANO","PARAÍBA DO SUL",63,116,null,null,"30º","I30","SANDRO PAIVA","SANTOS DUMONT",69,121,null,null,"30º","JHON NETO","JÉFERSON","PARAÍBA DO SUL",72,null,null,"30º","IMPACTO","DIEGO NEVES","JUIZ DE FORA",69,104,null,null,"30º","PROFESSOR","HERALDO","PETRÓPOLIS",86,135]
["31º","RAGNAR","ÍNDIO","PETRÓPOLIS",71,112,null,null,"31º","SEM LIMITES","CAIO","PATY DO ALFERES",94,117,null,null,"31º","OURO BRANCO","DHACO","PARAÍBA DO SUL",71,null,null,"31º","IMPERADOR","GABRIEL","PETRÓPOLIS",70,103,null,null,"31º","CURISCO","SÁVIO/VITOR","UBÁ",121,134]
["32º","JAGUAR","JUNINHO/RUAN","TRÊS RIOS",94,108,null,null,"32º","LAMPIÃO","ZECA/LUIS","PARACAMBI",105,116,null,null,"32º","PROFETA","ANTÔNIO","MATIAS BARBOSA",61,null,null,"32º","PIVETE","EMERSON","AREAL",79,102,null,null,"32º","BIGODINHO","RONDINELLI","SANTOS DUMONT",99,134]
["33º","PIU PIU","LUIZ GUSTAVO","TRÊS RIOS",59,108,null,null,"33º","BRUXO F2 COMETA","JOHNATAN","UBÁ",133,113,null,null,"33º","RAGNAR","ÍNDIO","PETRÓPOLIS",46,null,null,"33º","REVELAÇÃO","ANTÔNIO MENEGUIT","CACHOEIRA DE MACACU",50,100,null,null,"33º","LEGENDÁRIO","WANDER BOLOTARI","BICAS",80,134]
["34º","CORINGA","LUCAS","TRÊS RIOS",86,103,null,null,"34º","CARIOCA","FABIANO/MUTUM","JUIZ DE FORA",52,111,null,null,"34º","FANTÁSTICO","EDUARDO","TRÊS RIOS",36,null,null,"34º","GARGALHADA","CICINHO","PARAÍBA DO SUL",92,99,null,null,"34º","TORMENTO","ANTÔNIO/DEIVID","MATIAS BARBOSA",117,130]
["35º","JHON NETO","JÉFERSON/MATHEUS","PARAÍBA DO SUL",99,99,null,null,"35º","BIPOLAR","DINO/VINI","MATIAS BARBOSA",99,107,null,null,"35º","TÁ LIGADO","VICENTE","?",23,null,null,"35º","PADRINHO","LI","BARBACENA",99,96,null,null,"35º","MAGO NEGRO","CLÓVIS/RODRIGO","TRÊS RIOS",80,123]
["36º","BRASILEIRINHO","WALTER MORELI","PETRÓPOLIS",79,94,null,null,"36º","CRUEL","JÚNIOR","RIO DE JANEIRO",83,106,null,null,"36º",null,null,null,null,null,null,"36º","METRALHA","RAUANI VALLE","TRÊS RIOS",123,93,null,null,"36º","TOMA JACK","IGOR","PARAÍBA DO SUL",75,122]
["37º","PESADELO","HENRIQUE","ANTA",71,94,null,null,"37º","RAIO","LUIS/ZECA","CHIADOR",108,105,null,null,"37º",null,null,null,null,null,null,"37º","SUB ZERO","JOTA","MATIAS BARBOSA",93,92,null,null,"37º","QUASE DESEJO","JORGE MUNIZ","SAPUCAIA",102,116]
["38º","762","DEIVID","JUIZ DE FORA",97,91,null,null,"38º","DELEGADO","KAUAN","PATY DO ALFERES",89,103,null,null,"38º",null,null,null,null,null,null,"38º","MELODIA","MURILO","VASSOURAS",56,90,null,null,"38º","RM SEM FREIO","WILSON/LÚCIO","JUIZ DE FORA",96,108]
["39º","BISON","NATHAN","LEVY GASPARIAN",73,91,null,null,"39º","ATHOS","DANIEL","SANTOS DUMONT",77,102,null,null,"39º",null,null,null,null,null,null,"39º","SOBREVIVENTE","WL FAMÍLIA MINGAL","PARAÍBA DO SUL",85,85,null,null,"39º","CASSINO","JUNINHO","TRÊS RIOS",162,107]
["40º","CHARADA","UESLEI","PARAÍBA DO SUL",68,88,null,null,"40º","VENENO","LEANDRO/GABRIEL","PARAÍBA DO SUL",82,100,null,null,"40º",null,null,null,null,null,null,"40º","CHUPA CABRA","REINALDO","BARBACENA",107,82,null,null,"40º","GENERAL","RONDINELLI","SANTOS DUMONT",95,106]
["41º","MAGO NEGRO","CLÓVIS/RODRIGO","TRÊS RIOS",51,88,null,null,"41º","ZÉ PEQUENO","LUIS PENA BRANCA","JUIZ DE FORA",52,100,null,null,"41º",null,null,null,null,null,null,"41º","BOLT","ADRIANO","PETRÓPOLIS",54,80,null,null,"41º","SHOGUN","REGINALDO","PETRÓPOLIS",90,104]
["42º","PIVETE","GILSON/GUSTAVO","TRÊS RIOS/S. DUMONT",85,76,null,null,"42º","MAGO","SÍLVIO","SANTOS DUMONT",151,99,null,null,"42º",null,null,null,null,null,null,"42º","BOLT","VITINHO","MATIAS BARBOSA",89,75,null,null,"42º","É SHOW","MAGON","VASSOURAS",86,94]
["43º","BERLIM","EDER","TRÊS RIOS",51,42,null,null,"43º","GAROTO","MARIZAL","JUIZ DE FORA",89,99,null,null,"43º",null,null,null,null,null,null,"43º","TIRO CERTO","LEANDRO/GABRIEL","PARAÍBA DO SUL",73,65,null,null,"43º","BICO DE PRATA","GUSTAVO/DEIVID","PARAÍBA DO SUL",107,85]
["44º","GREGO","GUSTAVO","PARAÍBA DO SUL",111,36,null,null,"44º","ÁGUIA","SANDRO VALÉRIO","VALENÇA",82,99,null,null,"44º",null,null,null,null,null,null,"44º","JJ NETO","RAFAEL","PARAÍBA DO SUL",61,61,null,null,"44º","DRIVER","FABIANO","JUIZ DE FORA",109,88]
["45º","TIO PATINHAS","VICTOR","TRÊS RIOS",51,25,null,null,"45º","BONES","EDI WILSON","PETRÓPOLIS",91,98,null,null,"45º",null,null,null,null,null,null,"45º","RAGNAR","SAULO","TRÊS RIOS",55,59,null,null,"45º","BOPE","VITOR MÁRCIO","TRÊS RIOS",97,73]
["46º","ASTRO","DHACO","PARAÍBA DO SUL",104,14,null,null,"46º","BAD BOY","SANDRO VALÉRIO","VALENÇA",70,96,null,null,"46º",null,null,null,null,null,null,"46º","TIO PATINHAS","VICTOR","TRÊS RIOS",50,55,null,null,"46º","CHUPA CABRA","REINALDO","BARBACENA",107,72]
["47º",null,null,null,null,null,null,null,"47º","SELVAGEM","HENRIQUE","TRÊS RIOS",63,96,null,null,"47º",null,null,null,null,null,null,"47º","RAGNAR","ÍNDIO","PETRÓPOLIS",60,50,null,null,"47º","POLÊMICO","GABRIEL/RICARDINHO","PARAÍBA DO SUL",102,68]
["48º",null,null,null,null,null,null,null,"48º","FANTASMA","CLÓVIS/RODRIGO","TRÊS RIOS",112,94,null,null,"48º",null,null,null,null,null,null,"48º",null,null,null,null,null,null,null,"48º"]
["49º",null,null,null,null,null,null,null,"49º","F-14","RAFAEL","VASSOURAS",84,94,null,null,"49º",null,null,null,null,null,null,"49º",null,null,null,null,null,null,null,"49º"]
["50º",null,null,null,null,null,null,null,"50º","BINHA PRETO","EULER","TRÊS RIOS",102,93,null,null,"50º",null,null,null,null,null,null,"50º",null,null,null,null,null,null,null,"50º"]
[null,null,null,null,null,null,null,null,"51º","REI DAVI","?","JUIZ DE FORA",78,93]
[null,null,null,null,null,null,null,null,"52º","BRILHANTE","FLÁVIO","PATY DO ALFERES",60,92]
[null,null,null,null,null,null,null,null,"53º","OURO FINO","EULER","TRÊS RIOS",105,87]
[null,null,null,null,null,null,null,null,"54º","TRATO FEITO","JOHNATAN","UBÁ",130,80]
[null,null,null,null,null,null,null,null,"55º","PÂNICO","TONINHO","JUIZ DE FORA",81,78]
[null,null,null,null,null,null,null,null,"56º","PRESTO","SÍLVIO","SANTOS DUMONT",77,77]
[null,null,null,null,null,null,null,null,"57º","CORINGA","GUSTAVO/JHONATA","PARAÍBA DO SUL",78,76]
[null,null,null,null,null,null,null,null,"58º","PIVETE","PELEGO","PATY DO ALFERES",100,70]
[null,null,null,null,null,null,null,null,"59º","ASTRO","DHACO","PARAÍBA DO SUL",78,53]
[null,null,null,null,null,null,null,null,"60º","MAJESTADE","CALOPICITA","PATY DO ALFERES",51,53]
[null,null,null,null,null,null,null,null,"61º","ABISMO","GUSTAVO/JHONATA","PARAÍBA DO SUL",78,48]
[null,null,null,null,null,null,null,null,"62º","TIO PATINHAS","VICTOR","TRÊS RIOS",53,48]
[null,null,null,null,null,null,null,null,"63º","ZÉ INACIO","GUSTAVO/JHONATA","PARAÍBA DO SUL",75,39]

{"sheet":"dez2025","index":7,"n_rows":52,"n_cols":31,"rows_kept":52,"cut":false,"hidden":false,"merged":[[0,0,0,6],[0,8,0,14],[0,16,0,22],[0,24,0,30]]}
["07/12/2025 (DOMINGO)",null,null,null,null,null,null,null,"14/12/2025 (DOMINGO)",null,null,null,null,null,null,null,"21/12/2025 (DOMINGO)",null,null,null,null,null,null,null,"28/12/2025 (DOMINGO)"]
["POS.","PÁSSARO","PROPRIETÁRIO","ORIGEM","VASS.","CANTOS","PONTOS",null,"POS.","PÁSSARO","PROPRIETÁRIO","ORIGEM","VASS.","CANTOS","PONTOS",null,"POS.","PÁSSARO","PROPRIETÁRIO","ORIGEM","VASS.","CANTOS","PONTOS",null,"POS.","PÁSSARO","PROPRIETÁRIO","ORIGEM","VASS.","CANTOS","PONTOS"]
["1º","TIK TOK","RAFAEL","BARBACENA",192,311,30,null,"1º","TIK TOK","RAFAEL","BARBACENA",227,281,30,null,"1º","TIK TOK","RAFAEL","BARBACENA",215,298,30,null,"1º","TIK TOK","RAFAEL","BARBACENA",237,299,30]
["2º","TRÓIA","BRUNO","TRÊS RIOS",105,217,28,null,"2º","MALUCO","ANDRÉ LUÍS","PARAÍBA DO SUL",219,257,28,null,"2º","LAMBADA","DANIEL","BAHIA",224,284,28,null,"2º","LAMBADA","DANIEL","ITABERABA/BAHIA",173,232,28]
["3º","EL CHAPO","RAFAEL","BARBACENA",153,203,26,null,"3º","EL CHAPO","RAFAEL","BARBACENA",145,213,26,null,"3º","REMY","RAFAEL","BARBACENA",131,217,26,null,"3º","TREM","RAFAEL","PARAÍBA DO SUL",127,178,26]
["4º","FAVELA","CABRITO/GABRIEL","MATIAS BARBOSA",102,180,24,null,"4º","LAMBADA","DANIEL/RICARDO","ITABERABA",156,191,24,null,"4º","EL CHAPO","RAFAEL","BARBACENA",138,170,24,null,"4º","SUPREMO","LEONARDO","SANTOS DUMONT",98,171,24]
["5º","CAVIAR","BRUNO","TRÊS RIOS",128,169,23,null,"5º","REMY","RAFAEL","BARBACENA",169,190,23,null,"5º","BINHA PRETO","EULER","TRÊS RIOS",106,170,23,null,"5º","V10","JUNINHO PACHECO","TRÊS RIOS",152,168,23]
["6º","FAKE NEWS","MOACIR/MARCOS","GUARARÁ",124,161,22,null,"6º","V10","JUNINHO PACHECO","TRÊS RIOS",147,186,22,null,"6º","TRÓIA","BRUNO","TRÊS RIOS",137,167,22,null,"6º","REMY","RAFAEL","BARBACENA",137,162,22]
["7º","MALUQUINHO","GIBA","TRÊS RIOS",124,161,21,null,"7º","CASSINO","JUNINHO","TRÊS RIOS",188,184,21,null,"7º","EXPRESSO","RAUANI VALLE","TRÊS RIOS",124,155,21,null,"7º","DUBAI","WILLIAM","TRÊS RIOS",111,161,21]
["8º","GAROTO","JONAS","TRÊS RIOS",163,153,20,null,"8º","FAVELA","CABRITO","MATIAS BARBOSA",150,178,20,null,"8º","FAVELA","CABRITO/GABRIEL","MATIAS BARBOSA",82,152,20,null,"8º","FAKE NEWS","MOACIR/MARCOS","GUARARÁ",141,160,20]
["9º","REMY","RAFAEL","BARBACENA",86,148,19,null,"9º","FANTASMA","CLÓVIS/RODRIGO","TRÊS RIOS",135,166,19,null,"9º","DUBAI","WILLIAM","TRÊS RIOS",105,143,19,null,"9º","EL DOIDO","ROMÁRIO","PETRÓPOLIS",96,158,19]
["10º","POLÊMICO","RICARDINHO/GABRIEL","PARAÍBA DO SUL",84,148,18,null,"10º","CAVIAR","BRUNO","TRÊS RIOS",132,150,18,null,"10º","CAVIAR","BRUNO","TRÊS RIOS",101,140,18,null,"10º","CHUPA CABRA","REINALDO","BARBACENA",128,156,18]
["11º","CHUPA CABRA","REINALDO","BARBACENA",101,141,17,null,"11º","MELIODAS","JONAS","TRÊS RIOS",98,150,17,null,"11º","DELÍRIO","RAUANI VALLE","TRÊS RIOS",83,120,17,null,"11º","BAIANO","CT LIMA","PARAÍBA DO SUL",46,145,17]
["12º","CYBORG","HENRIQUE","ANTA",53,138,16,null,"12º","FORASTEIRO","WL F. MINGAL/GABRIEL","PARAÍBA DO SUL",95,150,16,null,"12º","DOGUINHA","LUCAS","TRÊS RIOS",67,112,16,null,"12º","TROIA","BRUNO","TRÊS RIOS",102,141,16]
["13º","PELÉ","WILLIAM","TRÊS RIOS",108,128,15,null,"13º","MAESTRO","CH F. MINGAL","PARAÍBA DO SUL",60,150,15,null,"13º","MALUQUINHO","GIBA","TRÊS RIOS",78,107,15,null,"13º","THOR","JANDERSON","TRÊS RIOS",80,140,15]
["14º","PIT BULL","JOÃO MARCOS","AREAL",98,126,14,null,"14º","PIT BULL","JOÃO MARCOS","AREAL",138,148,14,null,"14º","SELVAGEM","HENRIQUE","TRÊS RIOS",78,106,14,null,"14º","TRUQUE","REGINALDO","PETRÓPOLIS",83,139,14]
["15º","GRILO","RODRIGO/BRUNO","PETRÓPOLIS",70,115,13,null,"15º","MENINO DO MORRO","GABRIEL/VLADIMIR","PARAÍBA DO SUL",95,135,13,null,"15º","MELIODAS","JONAS","TRÊS RIOS",88,105,13,null,"15º","FURIOSO","LI","BARBACENA",106,137,13]
["16º","RM SEM FREIO","WILSON/LÚCIO","JUIZ DE FORA",84,111,null,null,"16º","ESCOBAR","DANIEL/RICARDO","ITABERABA",75,134,null,null,"16º","POLÊMICO","GABRIEL M./RICARDINHO","PARAÍBA DO SUL",83,98,null,null,"16º","CHACAL","LEONARDO","SANTOS DUMONT",90,135]
["17º","XEQUE MATE","EULER","TRÊS RIOS",80,110,null,null,"17º","ABENÇOADO","RAUANI VALLE","TRÊS RIOS",96,133,null,null,"17º","CHUPA CABRA","REINALDO","BARBACENA",101,93,null,null,"17º","BALINHA","WL FAMÍLIA MINGAL","PARAÍBA DO SUL",95,131]
["18º","CORINGA","FAMÍLIA HONORATO","PARAÍBA DO SUL",50,101,null,null,"18º","GAROTO","BIRA","CARATINGA",80,131,null,null,"18º","JUSTICEIRO","HENRIQUE","ANTA",69,67,null,null,"18º","BMW","JOÃO PEDRO","PARAÍBA DO SUL",95,124]
["19º","THOR","JANDERSON","TRÊS RIOS",115,96,null,null,"19º","PELÉ","WILLIAM","TRÊS RIOS",95,125,null,null,"19º","PIVETE","LEANDRO","TRÊS RIOS",69,40,null,null,"19º","TENEBROSO","JONAS RICARDO","TRÊS RIOS",94,120]
["20º","DUBAI","WILLIAM","TRÊS RIOS",111,93,null,null,"20º","DOLLAR","CT ALPHA","PARAÍBA DO SUL",107,120,null,null,"20º","BRAD PITT","FELIPE ROCHA","TRÊS RIOS",140,34,null,null,"20º","DOLLAR","CT ALPHA","PARAÍBA DO SUL",64,118]
["21º","ZÉ INÁCIO","GUSTAVO/JHONATAN","PARAÍBA DO SUL",108,92,null,null,"21º","METRALHA","RAUANI VALLE","TRÊS RIOS",122,118,null,null,"21º",null,null,null,null,null,null,null,"21º","ELITE","FERNANDO PEREIRA","PETRÓPOLIS",113,117]
["22º","ZIDANE","GUSTAVO/JHONATAN","PARAÍBA DO SUL",65,89,null,null,"22º","BOPE","VITOR MÁRCIO","TRÊS RIOS",107,115,null,null,"22º",null,null,null,null,null,null,null,"22º","MAESTRO","CH FAMÍLIA MINGAL","PARAÍBA DO SUL",48,115]
["23º","FORA DA LEI","GILSON/GUSTAVO","TRÊS RIOS/S. DUMONT",75,86,null,null,"23º","THOR","JANDERSON","TRÊS RIOS",129,112,null,null,"23º",null,null,null,null,null,null,null,"23º","PADRINHO","LI","BARBACENA",93,108]
["24º","ASTRO","FAMÍLIA MINGAL","PARAÍBA DO SUL",56,86,null,null,"24º","BOB MARLEY","MATHEUS","PARAÍBA DO SUL",64,110,null,null,"24º",null,null,null,null,null,null,null,"24º","REI DO FURDUNCO","WILLIAN","TRÊS RIOS",99,107]
["25º","GASPARZINHO","JAIME JOSÉ","BARBACENA",73,85,null,null,"25º","BICO DE PRATA","GUSTAVO/RAYANE","PARAÍBA DO SUL",82,108,null,null,"25º",null,null,null,null,null,null,null,"25º","FILHOTE REI DA RUA","GUSTAVO/RAYANE","PARAÍBA DO SUL",59,99]
["26º","NEXTEL","NATHAN","LEVY GASPARIAN",52,84,null,null,"26º","SELVAGEM","JOSENILTON","PARAÍBA DO SUL",73,105,null,null,"26º",null,null,null,null,null,null,null,"26º","PALETÓ","LI","BARBACENA",116,98]
["27º","GENERAL","LEONARDO","SANTOS DUMONT",66,54,null,null,"27º","PETER PAN","RAFAEL","PARAÍBA DO SUL",94,103,null,null,"27º",null,null,null,null,null,null,null,"27º","PIVETE","GILSON/GUSTAVO","SANTOS DUMONT/TRÊS RIOS",120,96]
["28º","CABARÉ","NOVELINO","JUIZ DE FORA",67,48,null,null,"28º","BRAD PITT","FELRE TORRES","TRÊS RIOS",80,98,null,null,"28º",null,null,null,null,null,null,null,"28º","COISA LINDA","LUCAS","TRÊS RIOS",100,96]
["29º","BRASILEIRINHO","WALTER MORELI","PETRÓPOLIS",75,35,null,null,"29º","POLÊMICO","GABRIEL M./RICARDINHO","PARAÍBA DO SUL",99,97,null,null,"29º",null,null,null,null,null,null,null,"29º","MAGISTRAL","REGINALDO","PETRÓPOLIS",93,90]
["30º","BBS","DHACO","PARAÍBA DO SUL",112,30,null,null,"30º","REVELAÇÃO","ANTÔNIO MENEGUIT","CACHOEIRA DE MACACU",65,97,null,null,"30º",null,null,null,null,null,null,null,"30º","SELVAGEM","HENRIQUE","TRÊS RIOS",96,86]
["31º","M. ESCORPIÃO","EULER","TRÊS RIOS",72,29,null,null,"31º","SOBREVIVENTE","WL F. MINGAL","PARAÍBA DO SUL",62,89,null,null,"31º",null,null,null,null,null,null,null,"31º","TE ALEJO","LUAN","PARAÍBA DO SUL",74,86]
["32º",null,null,null,null,null,null,null,"32º","JHON NETO","JEFFERSON","PARAÍBA DO SUL",100,74,null,null,"32º",null,null,null,null,null,null,null,"32º","FORASTEIRO","WL FAMÍLIA MINGAL","PARAÍBA DO SUL",68,77]
["33º",null,null,null,null,null,null,null,"33º","MAVERICK","DANIEL/RICARDO","ITABERABA",75,67,null,null,"33º",null,null,null,null,null,null,null,"33º","GARNIZE","MIGUEL MACEDO","PETRÓPOLIS",68,72]
["34º",null,null,null,null,null,null,null,"34º",null,null,null,null,null,null,null,"34º",null,null,null,null,null,null,null,"34º","PETER PAN","RAFAEL","PARAÍBA DO SUL",60,63]
["35º",null,null,null,null,null,null,null,"35º",null,null,null,null,null,null,null,"35º",null,null,null,null,null,null,null,"35º","FORA DA LEI","GILSON/GUSTAVO","SANTOS DUMONT/TRÊS RIOS",118,57]
["36º",null,null,null,null,null,null,null,"36º",null,null,null,null,null,null,null,"36º",null,null,null,null,null,null,null,"36º","DELEGADO DNA","VINÍCIUS DNA","PETRÓPOLIS",50,20]
["37º",null,null,null,null,null,null,null,"37º",null,null,null,null,null,null,null,"37º",null,null,null,null,null,null,null,"37º"]
["38º",null,null,null,null,null,null,null,"38º",null,null,null,null,null,null,null,"38º",null,null,null,null,null,null,null,"38º"]
["39º",null,null,null,null,null,null,null,"39º",null,null,null,null,null,null,null,"39º",null,null,null,null,null,null,null,"39º"]
["40º",null,null,null,null,null,null,null,"40º",null,null,null,null,null,null,null,"40º",null,null,null,null,null,null,null,"40º"]
["41º",null,null,null,null,null,null,null,"41º",null,null,null,null,null,null,null,"41º",null,null,null,null,null,null,null,"41º"]
["42º",null,null,null,null,null,null,null,"42º",null,null,null,null,null,null,null,"42º",null,null,null,null,null,null,null,"42º"]
["43º",null,null,null,null,null,null,null,"43º",null,null,null,null,null,null,null,"43º",null,null,null,null,null,null,null,"43º"]
["44º",null,null,null,null,null,null,null,"44º",null,null,null,null,null,null,null,"44º",null,null,null,null,null,null,null,"44º"]
["45º",null,null,null,null,null,null,null,"45º",null,null,null,null,null,null,null,"45º",null,null,null,null,null,null,null,"45º"]
["46º",null,null,null,null,null,null,null,"46º",null,null,null,null,null,null,null,"46º",null,null,null,null,null,null,null,"46º"]
["47º",null,null,null,null,null,null,null,"47º",null,null,null,null,null,null,null,"47º",null,null,null,null,null,null,null,"47º"]
["48º",null,null,null,null,null,null,null,"48º",null,null,null,null,null,null,null,"48º",null,null,null,null,null,null,null,"48º"]
["49º",null,null,null,null,null,null,null,"49º",null,null,null,null,null,null,null,"49º",null,null,null,null,null,null,null,"49º"]
["50º",null,null,null,null,null,null,null,"50º",null,null,null,null,null,null,null,"50º",null,null,null,null,null,null,null,"50º"]